Cogmind - Beta 11 X9 @@@ ROGUE MODE // 2021.12.25 @ 20:14:21 // Winter2021/Sauler Player: aoemica Result: Establishing 0b11! Performance ------------- Evolutions (9) 4500 Regions Visited (44) 8800 Robots Destroyed (792) 3960 Value Destroyed (47080) 47080 Prototype IDs (122) 2440 Alien Tech Used (14) 2800 Bonus (59484) 59484 TOTAL SCORE: 129064 Bonus ------- High Alert Combat Kills 1928 Follower Combat Kills 5154 Entered Garrisons 2200 Used RIF Installer 5500 Network Hubs Disabled 400 Aligned with FarCom 300 Built Enhanced Grunts 300 A7 Reached Mainframe 300 Met R17 at Cetus 500 Met R17 at Research 2000 Recovered Sigix Corpse 2000 Destroyed MAIN.C Guards 500 Met MAIN.C 5000 Hacked MAIN.C 300 Destroyed MAIN.C Shell 5000 Destroyed MAIN.C 10000 Met Architect 300 Destroyed A8 300 Destroyed A6 400 Destroyed A5 500 Destroyed A4 700 Destroyed A3 800 Destroyed A2 1000 Destroyed Architect 15000 Win 3000 Friendly Fire -3898 Cogmind --------- Core Integrity 805/1850 Matter 300/300 Energy 358/380 System Corruption 1% Temperature Cool (10) Movement Treading (151) Location 0b11 Command Parts ------- > --- POWER (2) -------- Zero-point Reactor Zero-point Reactor > --- PROPULSION (6) --- Experimental Biometal Heavy Treads Enhanced Armored Heavy Treads Enhanced Armored Heavy Treads > --- UTILITY (13) ----- Desublimator Huge Storage Unit Experimental Optical Array Experimental Targeting Computer Experimental Targeting Computer Experimental Target Analyzer Experimental Armor Integrity Analyzer Advanced Kinecellerator Experimental Weapon Cycler Experimental Powered Armor Heavy Regenerative Plating AEGIS Remote Shield > --- WEAPON (4) ------- Multirail Multirail Multirail Multirail > --- INVENTORY (25) --- Zero-point Reactor Experimental Energy Well (600) Experimental Energy Well (600) Experimental Matter Compressor (500) Experimental Targeting Computer Improved Armor Integrity Analyzer Quantum Capacitor Experimental Powered Armor Experimental Powered Armor Advanced Force Field High-powered Transdimensional Reconstructor Microwarp Drive Long-range Gatling Laser HERF Cannon Firepult Null Cannon Improved Potential Cannon Graviton Cannon Sigix Broadsword Sigix Corpse Peak State ------------ > --- POWER ------------ Zero-point Reactor Zero-point Reactor > --- PROPULSION ------- Experimental Biometal Heavy Treads Enhanced Armored Heavy Treads Enhanced Armored Heavy Treads > --- UTILITY ---------- Desublimator Huge Storage Unit Experimental Optical Array Experimental Targeting Computer Experimental Targeting Computer Experimental Target Analyzer Experimental Armor Integrity Analyzer Advanced Kinecellerator Experimental Weapon Cycler Experimental Powered Armor Heavy Regenerative Plating AEGIS Remote Shield > --- WEAPON ----------- Multirail Multirail Multirail Multirail > --- INVENTORY -------- Zero-point Reactor Zero-point Reactor Experimental Energy Well Experimental Energy Well Experimental Matter Compressor Experimental Targeting Computer Improved Armor Integrity Analyzer Quantum Capacitor Centrium Medium Armor Plating Medium Regenerative Plating Advanced Force Field High-powered Transdimensional Reconstructor Microwarp Drive Long-range Gatling Laser HERF Cannon Firepult Null Cannon Improved Potential Cannon Graviton Cannon Sigix Broadsword [Rating: 265] Favorites ----------- Power Antimatter Reactor Engine Heavy Ion Engine Power Core Micro Fission Core Reactor Antimatter Reactor Propulsion Light Treads Treads Light Treads Leg Aluminum Leg Utility Huge Storage Unit Device Advanced Force Field Storage Huge Storage Unit Processor Experimental Targeting Computer Hackware Relay Coupler [NC] Protection Heavy Regenerative Plating Artifact Microwarp Drive Weapon Multirail Energy Gun EM Pulse Gun Energy Cannon Cooled Particle Cannon Ballistic Gun Multirail Ballistic Cannon Hardcell Cannon Launcher Grenade Launcher Special Weapon Advanced Remote Datajack Impact Weapon Core Stripper Slashing Weapon Scythe Piercing Weapon Heavy Pick Special Melee Weapon Datajack Build | -11 -10 -10 -9 -9 -9 -8 -8 -8 -8 -8 -7 -7 -7 -7 -7 -7 -6 -6 -5 -5 -5 -5 -5 -5 -4 -4 -4 -4 -4 -4 -4 -4 -3 -3 -3 -2 -2 -2 -2 -1 -1 -1 -1 -1 ------- Run | Scr Mat Min Mat Min Exi Min Mat Gar Sto Gar Fac Was Fac Gar Fac Gar Fac Gar Fac Was Fac Gar Fac Gar Fac Was Fac Ext Cet Arc Hub Gar Res Tes Gar Res Qua Sec Gar Acc Gar Acc Com Ac0 Slots Evolved 18 | . . . 2 . . . 2 . . . 2 . . . . . 2 . 2 . . . . . 2 . . . . . . . 2 . . 2 . . . 2 . . . . Power 1 | . . . . . . . . . . . . . . . . . . . 1 . . . . . . . . . . . . . . . . . . . . . . . . . Propulsion 4 | . . . 1 . . . . . . . 1 . . . . . . . 1 . . . . . 1 . . . . . . . . . . . . . . . . . . . Utility 11 | . . . 1 . . . 1 . . . 1 . . . . . 2 . . . . . . . 1 . . . . . . . 2 . . 1 . . . 2 . . . . Weapon 2 | . . . . . . . 1 . . . . . . . . . . . . . . . . . . . . . . . . . . . . 1 . . . . . . . . Parts Attached 1125 | . 11 7 21 4 3 16 38 22 30 17 15 4 . 15 21 31 18 13 9 6 23 66 8 21 23 38 8 1 8 18 23 21 17 27 35 54 36 77 15 12 5 59 153 76 Power 65 | . 3 . 2 . . . 2 . 1 . . 1 . 1 1 2 2 . 1 1 1 2 . . 2 5 . . . 1 4 . . . 6 4 . 6 . 1 . 3 11 2 Engine 8 | . 3 . 2 . . . 1 . 1 . . . . . . . 1 . . . . . . . . . . . . . . . . . . . . . . . . . . . Core 11 | . . . . . . . 1 . . . . . . 1 1 2 1 . 1 . 1 1 . . . . . . . . 1 . . . 1 . . . . . . . . . Reactor 46 | . . . . . . . . . . . . 1 . . . . . . . 1 . 1 . . 2 5 . . . 1 3 . . . 5 4 . 6 . 1 . 3 11 2 Propulsion 129 | . 4 1 5 . . 2 8 7 9 3 3 1 . 4 4 6 3 . 2 2 1 17 . 1 2 9 . . 4 1 . 1 5 2 2 4 4 4 . . . 1 6 1 Treads 129 | . 4 1 5 . . 2 8 7 9 3 3 1 . 4 4 6 3 . 2 2 1 17 . 1 2 9 . . 4 1 . 1 5 2 2 4 4 4 . . . 1 6 1 Leg . | . . . . . . . . . . . . . . . . . . . . . . . . . . . . . . . . . . . . . . . . . . . . . Wheel . | . . . . . . . . . . . . . . . . . . . . . . . . . . . . . . . . . . . . . . . . . . . . . Hover . | . . . . . . . . . . . . . . . . . . . . . . . . . . . . . . . . . . . . . . . . . . . . . Flight . | . . . . . . . . . . . . . . . . . . . . . . . . . . . . . . . . . . . . . . . . . . . . . Utility 366 | . 3 . 5 . 1 1 12 4 3 5 8 1 . 2 5 7 3 4 2 2 13 14 2 7 6 14 3 1 1 6 12 10 7 11 7 27 19 30 4 3 3 11 62 25 Device 191 | . . . 1 . . 1 6 1 . 2 2 . . 1 . 1 . 2 1 . 10 9 2 1 3 10 1 . . 4 4 3 6 8 3 18 15 16 3 2 1 5 36 13 Storage 27 | . 2 . 2 . 1 . . . . . . . . . 2 1 1 1 . . . . . . . . . . . . . . . . . 2 1 1 . 1 . 1 8 3 Processor 15 | . . . . . . . 1 . . . 2 . . . . . . . 1 . . . . . . 1 . . . . 1 . 1 . . 1 1 1 . . . . 3 2 Hackware 52 | . . . . . . . . 1 . 3 . . . 1 1 4 2 1 . . . 4 . 6 2 . 2 . . 1 1 5 . . 4 1 2 2 1 . . 5 3 . Protection 74 | . 1 . 2 . . . 5 2 3 . 4 1 . . 2 1 . . . 2 3 1 . . 1 3 . 1 1 1 6 2 . 3 . 5 . 6 . . 1 . 12 5 Artifact 7 | . . . . . . . . . . . . . . . . . . . . . . . . . . . . . . . . . . . . . . 4 . . 1 . . 2 Weapon 565 | . 1 6 9 4 2 13 16 11 17 9 4 1 . 8 11 16 10 9 4 1 8 33 6 13 13 10 5 . 3 10 7 10 5 14 20 19 13 37 11 8 2 44 74 48 Energy Gun 10 | . . 1 . . . . 1 . 1 . . . . . . . . . . . . 1 . . . 1 . . 1 . . . . 1 . 1 . . . . . . 1 1 Energy Cannon 139 | . . . 5 2 1 6 7 6 4 2 1 . . 1 8 4 6 5 2 1 5 13 3 . 1 2 2 . . 3 1 1 . 1 1 1 1 2 3 2 . 3 11 22 Ballistic Gun 147 | . . 1 1 . . 1 1 1 8 3 1 . . 3 1 . . . . . . . . . . . . . 2 4 2 4 1 6 13 6 2 7 4 1 2 25 34 13 Ballistic Cannon 76 | . 1 1 . . . . . . . . . . . . . . . . . . . 4 2 7 5 3 3 . . . . . 2 4 . 4 4 9 2 2 . 5 7 11 Launcher 36 | . . 3 3 2 . 5 1 3 3 . . . . . . 2 1 1 1 . 1 2 . . . . . . . . . . . . . 1 . 1 2 . . 3 1 . Special Weapon 100 | . . . . . . . . . . . . . . 2 2 6 3 2 1 . . 9 1 5 4 2 . . . 2 1 4 1 1 6 6 4 13 . 3 . 6 16 . Impact Weapon 14 | . . . . . . 1 . . . . . . . . . . . . . . . . . . . . . . . . . . . . . . 2 5 . . . 2 4 . Slashing Weapon 28 | . . . . . . . 6 1 1 1 2 1 . 2 . 4 . . . . . . . . 2 2 . . . . 3 1 . 1 . . . . . . . . . 1 Piercing Weapon 10 | . . . . . . . . . . . . . . . . . . 1 . . 2 4 . 1 1 . . . . . . . 1 . . . . . . . . . . . Special Melee Weapon 5 | . . . . . 1 . . . . 3 . . . . . . . . . . . . . . . . . . . 1 . . . . . . . . . . . . . . Unidentified Prototypes 70 | . . . 2 . . . 1 . 5 . . . . . 1 . . . 1 . . . 2 . 1 . 1 . 4 . 3 . 3 5 . 6 7 9 1 . . . 11 7 Corrupted Parts 4 | . . . . . . . . . . . . . . . . . . . . . . . . . . . . . 1 3 . . . . . . . . . . . . . . System Corruption 15 | . . . . . . . . . . . . . . . . . . . . . . . . . . . . . 7 8 . . . . . . . . . . . . . . Parts Lost 23 | . . 1 . . . . 1 . . . . . . . . . . 1 . . 1 9 . . 1 . . . . . 1 . . 1 1 1 . 2 . . . 1 1 1 Power 3 | . . . . . . . . . . . . . . . . . . . . . . 1 . . . . . . . . . . . . 1 . . 1 . . . . . . Propulsion 7 | . . 1 . . . . . . . . . . . . . . . . . . . 5 . . 1 . . . . . . . . . . . . . . . . . . . Utility 11 | . . . . . . . 1 . . . . . . . . . . 1 . . 1 3 . . . . . . . . 1 . . . . 1 . 1 . . . 1 1 . Weapon 2 | . . . . . . . . . . . . . . . . . . . . . . . . . . . . . . . . . . 1 . . . . . . . . . 1 Highest Loss Streak 8 | . . 1 . . . . 1 . . . . . . . . . . 1 . . 1 8 . . 1 . . . . . 1 . . 1 1 1 . 1 . . . 1 1 1 Average Slot Usage (%) 88 | . 95 100 98 100 100 99 99 100 99 100 99 98 92 98 92 99 99 99 98 75 73 92 94 92 93 85 84 84 84 83 70 83 84 84 84 85 81 77 80 78 77 80 79 81 Engine 1 | . 14 14 11 11 11 11 7 . 5 9 7 . . . . . . . . . . . . . . . . . . . . . . . . . . . . . . . . . Core 1 | . . . . . . . 1 9 3 . . . . 3 7 6 5 6 9 9 5 2 5 5 3 . . . . . . . . . 1 . . . . . . . . . Reactor 4 | . . . . . . . . . . . . 6 7 3 . . . . . 1 5 8 5 5 6 10 10 10 10 10 10 10 9 9 7 7 4 4 8 4 4 5 6 8 Treads 19 | . 21 28 32 33 33 33 27 27 26 27 29 28 23 28 23 30 25 26 29 22 17 22 23 23 26 17 15 15 15 15 15 15 14 14 13 13 13 12 13 12 12 12 12 12 Device 10 | . . . 2 11 11 11 12 9 9 6 7 7 7 3 . 1 6 12 11 . 7 20 17 12 12 14 10 10 10 11 1 7 18 19 10 12 13 10 8 11 12 11 13 13 Storage 6 | . 14 14 18 11 11 11 9 9 9 9 7 7 7 7 7 7 6 6 5 5 5 5 5 5 5 5 5 5 5 5 5 5 4 4 4 4 6 6 4 7 8 6 6 5 Processor 9 | . . . . . . . 5 9 9 9 14 15 15 15 15 15 13 13 11 5 5 5 5 5 5 5 5 5 5 5 . 5 4 4 4 4 6 9 13 12 12 12 14 20 Hackware 7 | . . . . . . . . . . 2 . . . 3 6 7 20 13 11 5 1 4 5 13 14 12 14 15 15 15 15 17 14 14 21 21 20 16 13 12 12 14 5 . Protection 5 | . 9 14 10 11 11 11 8 9 8 9 7 7 7 7 7 4 . . . 5 4 2 5 1 3 3 5 5 5 3 5 5 4 3 4 3 . 1 4 4 3 4 6 8 Energy Cannon 4 | . . . 4 10 1 10 6 8 7 3 5 7 7 4 19 17 18 19 16 17 12 7 4 . . 2 5 10 10 3 3 . . . . . . . 1 2 2 . 1 1 Ballistic Gun 9 | . 12 5 11 11 11 10 18 18 17 21 14 7 7 15 3 . . . . . . . . . . . . . 4 4 9 10 11 8 12 12 12 1 6 5 3 12 12 11 Ballistic Cannon 1 | . 1 11 6 . . . . . . . . . . . . . . . . . . 4 11 10 12 6 8 5 . . . . 2 3 . 1 1 . 5 3 4 . . 1 Naked Turns . | . . . . . . . . . . . . . . . . . . . . . . . . . . . . . . . . . . . . . . . . . . . . . Heaviest Build 297 | 12 31 32 44 41 61 61 70 66 68 67 72 75 73 76 73 104 75 120 125 168 170 159 150 152 153 170 162 164 164 162 179 155 155 158 148 170 160 184 188 192 189 192 297 212 Greatest Support 245 | 20 40 40 60 60 60 60 63 63 63 60 82 110 110 110 110 80 90 90 118 170 170 163 139 139 162 210 210 210 240 240 240 240 230 220 230 235 240 240 240 240 240 240 245 245 Greatest Overweight (x) 2 | . . . . . 1 1 1 1 2 1 1 . . . 1 1 1 1 1 1 1 1 1 1 . 1 . . . . . . . . . . . . . . . . 1 . Average Overweight (x) . | . . . . . . . . . . 1 . . . . . . . . . . . . 1 . . . . . . . . . . . . . . . . . . . . . Largest Inventory Capacity 25 | . 15 15 15 15 20 20 20 20 20 20 20 20 20 20 25 25 25 25 25 25 25 25 25 25 25 25 25 25 25 25 25 25 25 25 25 25 25 25 25 25 25 25 25 25 Average Capacity 23 | . 12 15 15 15 17 20 20 20 20 20 20 20 20 20 20 20 20 21 25 25 25 25 25 25 25 25 25 25 25 25 25 25 25 25 25 25 25 25 25 25 25 25 25 25 Most Carried 25 | . 15 15 15 15 20 20 20 20 20 20 20 20 20 20 21 22 21 25 25 25 25 25 25 25 25 25 25 25 25 25 25 25 25 25 25 25 25 25 25 25 25 25 25 25 Average Carried 22 | . 12 14 14 15 16 19 19 19 19 19 19 19 20 19 20 19 19 20 24 24 24 23 25 23 24 24 24 24 24 24 23 24 24 24 24 24 24 24 24 24 24 24 23 24 Final Capacity 25 | 8 15 15 15 15 20 20 20 20 20 20 20 20 20 20 20 25 20 25 25 25 25 25 25 25 25 25 25 25 25 25 25 25 25 25 25 25 25 25 25 25 25 25 25 25 Final Carried 25 | 6 15 15 15 15 20 20 20 20 20 20 20 20 20 20 20 22 20 25 25 25 25 25 25 25 24 25 25 25 25 25 25 25 25 25 25 25 25 25 25 25 25 25 25 25 Class Distribution -------------------- 29% | Botlord-Mutant 11% | Mutant 9% | Botlord-Gunner 9% | Botlord-Tank 7% | Scavenger-Mutant 7% | Scavenger-Gunner 6% | Scavenger-Skirmisher 6% | Gunner 4% | Bothacker-Mutant 3% | Bothacker-Gunner Dominant Class ---------------- Mutant | -10/Materials Mutant | -10/Mines Mutant | -9/Materials Mutant | -9/Mines Scavenger-Mutant | -9/Exiles Mutant | -8/Mines Scavenger-Skirmisher | -8/Materials Scavenger-Skirmisher | -8/Garrison Scavenger-Skirmisher | -8/Storage Scavenger-Mutant | -8/Garrison Gunner | -7/Factory Mutant | -7/Waste Mutant | -7/Factory Bothacker-Mutant | -7/Garrison Bothacker-Gunner | -7/Factory Bothacker-Mutant | -7/Garrison Bothacker-Mutant | -6/Factory Botlord-Mutant | -6/Garrison Botlord-Mutant | -5/Factory Botlord-Gunner | -5/Waste Botlord-Mutant | -5/Factory Botlord-Mutant | -5/Garrison Botlord-Tank | -5/Factory Botlord-Mutant | -5/Garrison Botlord-Mutant | -4/Factory Botlord-Mutant | -4/Waste Botlord-Mutant | -4/Factory Botlord-Mutant | -4/Extension Botlord-Tank | -4/Cetus Botlord-Mutant | -4/Archives Bothacker-Tank | -4/Hub_04(d) Botlord-Mutant | -4/Garrison Botlord-Tank | -3/Research Botlord-Mutant | -3/Testing Botlord-Mutant | -3/Garrison Botlord-Mutant | -2/Research Botlord-Mutant | -2/Quarantine Botlord-Mutant | -2/Section 7 Botlord-Mutant | -2/Garrison Botlord-Mutant | -1/Access Botlord-Mutant | -1/Garrison Botlord-Gunner | -1/Access Gunner | -1/Command Scavenger-Gunner | -1/Access_0 Resources | -11 -10 -10 -9 -9 -9 -8 -8 -8 -8 -8 -7 -7 -7 -7 -7 -7 -6 -6 -5 -5 -5 -5 -5 -5 -4 -4 -4 -4 -4 -4 -4 -4 -3 -3 -3 -2 -2 -2 -2 -1 -1 -1 -1 -1 ----------- Run | Scr Mat Min Mat Min Exi Min Mat Gar Sto Gar Fac Was Fac Gar Fac Gar Fac Gar Fac Was Fac Gar Fac Gar Fac Was Fac Ext Cet Arc Hub Gar Res Tes Gar Res Qua Sec Gar Acc Gar Acc Com Ac0 Matter Collected 29042 | 200 327 413 523 192 . 334 909 488 600 453 197 60 . 395 301 401 133 264 83 62 247 949 199 1164 644 507 . 111 80 315 690 868 340 1102 1540 2641 1767 2240 325 190 174 2613 3618 383 Remotely 223 | . . . . . . . . . . . . . . . . . . . . . . . . . . . . . . . . . . . . . . . . . . . 223 . Salvage Created 50509 | . 556 276 882 154 . 471 1352 630 1556 870 230 60 . 765 514 700 126 725 126 849 1039 935 238 458 917 2216 . 182 300 196 1814 855 458 759 1022 2480 1672 2711 1100 1737 484 5887 7774 4433 Parts 2122 | . 51 11 45 22 . 21 83 46 73 34 16 2 . 34 28 37 6 33 3 17 55 44 3 11 30 63 . 5 10 21 88 35 13 42 34 139 86 70 23 18 5 300 279 186 Haulers Intercepted 25 | . 1 . 4 . . . 4 . 6 . . . . . 2 . . . 1 . . . 1 . 2 . . . . . . . . . . 1 . 1 . . . 2 . . Recyclers Shooed 22 | . 2 2 1 . . . 2 . 3 . . . . . . . 2 . . . . . . . . . . . . . . . . . . 2 . . . 3 . 4 1 . Parts Field Recycled . | . . . . . . . . . . . . . . . . . . . . . . . . . . . . . . . . . . . . . . . . . . . . . Retrieved Matter . | . . . . . . . . . . . . . . . . . . . . . . . . . . . . . . . . . . . . . . . . . . . . . Parts Self-Destructed . | . . . . . . . . . . . . . . . . . . . . . . . . . . . . . . . . . . . . . . . . . . . . . Prevented . | . . . . . . . . . . . . . . . . . . . . . . . . . . . . . . . . . . . . . . . . . . . . . Kills | -11 -10 -10 -9 -9 -9 -8 -8 -8 -8 -8 -7 -7 -7 -7 -7 -7 -6 -6 -5 -5 -5 -5 -5 -5 -4 -4 -4 -4 -4 -4 -4 -4 -3 -3 -3 -2 -2 -2 -2 -1 -1 -1 -1 -1 ------- Run | Scr Mat Min Mat Min Exi Min Mat Gar Sto Gar Fac Was Fac Gar Fac Gar Fac Gar Fac Was Fac Gar Fac Gar Fac Was Fac Ext Cet Arc Hub Gar Res Tes Gar Res Qua Sec Gar Acc Gar Acc Com Ac0 Combat Hostiles Destroyed 710 | . 14 17 18 13 . 18 28 24 18 19 3 . . 17 6 19 3 16 1 3 17 24 3 12 11 6 . 1 4 . 25 14 6 11 14 26 21 39 21 12 6 75 75 50 Melee 51 | . . . . . . 2 5 2 4 5 1 . . 3 . 3 . 1 . . 8 3 . 1 1 . . . . . 5 2 . . . . . 3 . . . . 2 . Guns 305 | . 12 1 5 2 . 1 8 4 7 11 1 . . 10 1 . . . . . . . . . . . . . 2 . 9 12 6 9 13 25 19 10 4 1 1 58 48 25 Cannons 147 | . . 5 8 3 . 2 12 5 5 3 1 . . 4 5 12 3 9 . 2 7 10 3 11 10 5 . 1 1 . 8 . . 2 . 1 1 6 . . 1 . . 1 AOE 99 | . 2 11 5 8 . 12 3 12 . . . . . . . 4 . 5 . . 2 9 . . . . . . . . . . . . . . . 5 8 1 . 6 5 1 Classes Destroyed 25 | . 6 1 3 . . . 2 1 2 . 1 1 . . . . . . . 1 . 2 . . . . . . . . 1 . 1 . . . 1 . . 1 . 1 . . Worker 34 | . . . 1 1 . . . . 2 . . . . . . . . . . . 1 . . . . . . . . . 1 . . . . 7 . 2 . 1 . 10 8 . Builder 15 | . . . . . . . . . 2 . . . . . . . . . . . . . . . . . . . . . 3 . . . . 7 1 . . . . 2 . . Tunneler 2 | . . . . . . . . . . . 1 . . . . . . . . . . . . . . . . . . . . . . . . . . . . . . 1 . . Hauler 25 | . 1 . 4 . . . 4 . 6 . . . . . 2 . . . 1 . . . 1 . 2 . . . . . . . . . . 1 . 1 . . . 2 . . Recycler 41 | . 1 3 1 . . 1 2 . 2 . 1 . . . 1 . . . . . . . . . 3 . . 1 . . . . . 1 . 4 . . . 5 . 5 10 . Mechanic 1 | . . . . . . . . . . . . . . . . . . . . . . . . . . . . . . . . . . . . . . . . 1 . . . . Operator 7 | . 1 . . . . . . . . . . . . . . . . . . . . . . . 1 . . 1 . 3 . . . . . . . . . . . . 1 . Watcher 12 | . 1 . . . . . 2 . 2 . . . . . 2 . . . . . . . . . . . . . . . . . . . 1 3 . . . . . . 1 . Swarmer 144 | . 7 3 3 10 . 7 10 12 . 4 . . . 7 . 8 1 4 . . . 9 . 1 2 . . . . . . 5 . . 3 9 . 4 6 . . 23 6 . Cutter 11 | . . . . . . . . . . . . . . . . . . . . . . 4 . . . . . . . . . . . . . . . . 4 . . 3 . . Grunt 177 | . 7 2 10 3 . 10 8 7 5 11 . . . 8 3 7 1 10 . . 3 3 3 11 3 . . 1 2 . 4 6 . 2 5 3 1 8 6 9 3 8 4 . Brawler 10 | . . . . . . . . . 1 2 . . . 1 . . . . . . 1 3 . . . . . . . . . 1 . . . . . . . . 1 . . . Duelist 4 | . . . 1 . . 1 . . . . . . . . . . . . . . . . . . . . . . . . . . . . . . . . . 1 . 1 . . Protector 2 | . . . . . . . . . . . . . . . . . . . . . . . . . . . . . . . 1 . . . . . . . . . . . 1 . Sentry 54 | . . . 4 . . . 7 3 11 2 . . . 1 1 2 . . . . 1 4 . . . . . . . . 2 1 . . . 2 3 2 2 . . 3 3 . Demolisher 2 | . . . . . . . . . . . . . . . . . . . . . . . . . . . . . . . . . 1 . . . . . . . . 1 . . Specialist 13 | . . . . . . . . 2 . . . . . . . . . . . . 1 . . . . . . . . . 2 . . . 1 . 3 2 . . . 2 . . Hunter 30 | . . . . . . . 2 . 1 . . . . 1 . . . 2 . . 3 . . . 2 . . . . . 5 . . . 5 . . 3 . . . . 6 . Programmer 166 | . . . . . . . 1 . . . 3 . . . 2 2 1 . 1 . 8 . . . 4 . . . . . 8 . . 9 . 12 13 18 3 2 2 31 46 . Heavy 3 | . . . . . . . . . . . . . . . . . . . . . . . . . . . . . . . . . . . . . . . . . . 2 1 . Behemoth 9 | . . . . . . . . . . . . . . . . . . . . . . 1 . . . . . . . . . 1 . . 1 . . 2 . . . 2 2 . Compactor 9 | . . . . . . . . . . . . . . . . . . . . 3 . . . . . 6 . . . . . . . . . . . . . . . . . . Cetus Guard 2 | . . . . . . . . . . . . . . . . . . . . . . . . . . . . . 2 . . . . . . . . . . . . . . . S7 Guard 1 | . . . . . . . . . . . . . . . . . . . . . . . . . . . . . . . . . . . . . . 1 . . . . . . M Guard 2 | . . . . . . . . . . . . . . . . . . . . . . . . . . . . . . . . . . . . . . . . . . . 2 . Enhanced Grunt 33 | . . . . . . . . . . . . . . . . . . . . . . . . . . . . . . 1 . . . . . . . . . . . . . 32 Enhanced Sentry 3 | . . . . . . . . . . . . . . . . . . . . . . . . . . . . . . . . . . . . . . . . . . . . 3 Enhanced Hunter 8 | . . . . . . . . . . . . . . . . . . . . . . . . . . . . . . . . . . . . . . . . . . . . 8 Lightning 3 | . . . . . . . . . . . . . . . . . . . . . . . . . . . . . . . 3 . . . . . . . . . . . . . Combat Programmer 2 | . . . . . . . . . . . . . . . . . . . . . . . . . . . . . . . . . . . . . . . . . . . 2 . Striker 5 | . . . . . . . . . . . . . . . . . . . . . . . . . . . . . . . . . 5 . . . . . . . . . . . Fortress 1 | . . . . . . . . . . . . . . . . . . . . . . . . . . . . . . . . . . . . . 1 . . . . . . . Assembled 12 | . . 12 . . . . . . . . . . . . . . . . . . . . . . . . . . . . . . . . . . . . . . . . . . Martyr 3 | . . . . . . . . . . . . 1 . . . . . . . . . . . . . 2 . . . . . . . . . . . . . . . . . . Best Kill Streak 17 | . 7 9 4 9 . 4 6 6 5 4 1 . . 4 3 6 2 6 1 2 3 5 3 5 2 1 . 1 2 2 5 5 2 2 3 14 3 7 6 17 4 8 17 6 Combat Bots Only 12 | . 5 8 3 9 . 4 5 6 5 4 1 . . 4 2 6 2 6 1 2 3 5 2 5 2 1 . 1 2 . 4 5 2 2 3 5 3 6 6 12 4 8 12 6 Max Kills in Single Turn 4 | . 2 1 3 3 . 3 4 4 2 1 1 1 . 2 1 3 1 2 1 1 2 4 1 1 1 1 . 1 1 1 1 2 1 1 1 4 1 3 4 3 1 3 3 2 Gunslinging 2 | . . . . . . . . . . . . . . . . . . . . . . . . . . . . . . . . 1 . . . . . . . . . 1 2 . Exploded 4 | . 2 1 3 3 . 3 3 4 . . . . . . . 3 . 2 . . 2 4 . . . . . . . . . . . . . . . 3 4 1 . 3 1 1 Melee 1 | . . . . . . 1 1 1 1 1 1 . . 1 . 1 . 1 . . 1 1 . 1 1 . . . . . 1 1 . . . . . 1 . . . . 1 . Uniques/NPCs Destroyed 10 | . . . . . . . . . . . . . . . . . . . . . . . . . . . . . . . . . 1 . . . . . . . . . 2 7 Revision 17++ (-3/Research) MAIN.C Shell (-1/Command) MAIN.C (-1/Command) A8 (-1/Access_0) A6 (-1/Access_0) A5 (-1/Access_0) A2 (-1/Access_0) Architect (-1/Access_0) A4 (-1/Access_0) A3 (-1/Access_0) Combat | -11 -10 -10 -9 -9 -9 -8 -8 -8 -8 -8 -7 -7 -7 -7 -7 -7 -6 -6 -5 -5 -5 -5 -5 -5 -4 -4 -4 -4 -4 -4 -4 -4 -3 -3 -3 -2 -2 -2 -2 -1 -1 -1 -1 -1 -------- Run | Scr Mat Min Mat Min Exi Min Mat Gar Sto Gar Fac Was Fac Gar Fac Gar Fac Gar Fac Was Fac Gar Fac Gar Fac Was Fac Ext Cet Arc Hub Gar Res Tes Gar Res Qua Sec Gar Acc Gar Acc Com Ac0 Damage Taken 32815 | . 268 266 750 242 . 421 850 438 483 559 161 . 111 699 516 449 91 510 103 . 633 1695 46 290 622 . . 84 116 . 1679 1100 233 321 1841 1369 859 3107 469 279 115 2499 1463 7078 Core 2425 | . 10 32 103 7 . 44 62 36 76 82 15 . 6 12 5 45 16 83 3 . 13 132 . 29 9 . . . . . 132 . 25 . 90 95 21 446 20 22 50 160 39 505 Absorbed by Shields 15604 | . . . . . . . . 17 . . . . . . . . . . 39 . 98 510 47 302 408 . . 89 121 . 409 589 241 69 503 208 163 1045 394 292 . 1806 1543 6711 Reduced by Siege Mode 782 | . . . . . . . . . . . . . . . . . . . . . 3 11 . 3 20 . . . . . 103 154 16 16 148 33 110 3 6 34 . 3 49 70 Core Remaining (%) 74 | 100 . 83 . . . 61 . . . 53 . . . . . 88 . 88 . . . . . 82 . . . . . . . 87 . . 91 . . . 46 . . . . 43 Volleys Fired 2176 | . 53 31 59 16 . 17 65 38 49 61 10 . . 40 27 34 23 68 13 16 30 84 19 41 33 123 1 15 8 30 59 48 18 54 78 95 69 85 22 42 11 139 168 284 Largest 4 | . 2 2 2 2 . 2 3 3 3 3 3 . . 3 3 3 3 3 3 3 3 3 3 3 3 2 1 3 3 1 3 3 3 3 3 4 4 4 3 3 2 4 4 4 Hottest 250 | . 75 75 91 91 . 91 114 114 119 119 119 . . 124 90 90 150 150 150 150 150 160 160 195 195 55 65 220 190 40 190 105 140 143 250 184 184 250 250 250 250 250 250 250 Shots Fired 4510 | . 96 45 112 24 . 21 191 82 131 121 29 . . 84 76 67 40 111 27 48 66 134 33 80 75 202 1 27 23 31 160 98 39 103 168 241 178 157 32 48 15 386 426 482 Gun 2501 | . 95 14 53 8 . 4 128 46 84 84 19 . . 61 20 . . . . . . . . . . . . . 7 9 109 84 35 56 138 210 148 82 15 25 8 340 355 264 Cannon 1656 | . 1 17 53 8 . 4 62 30 46 37 10 . . 20 54 52 37 103 26 48 65 117 31 59 68 119 1 27 16 . 50 . 2 45 14 23 26 51 15 18 7 30 46 218 Launcher 69 | . . 14 6 8 . 13 1 6 1 . . . . . . 2 . 4 . . 1 5 . . . . . . . . . . . . . . . 4 2 . . 2 . . Special 284 | . . . . . . . . . . . . . . 3 2 13 3 4 1 . . 12 2 21 7 83 . . . 22 1 14 2 2 16 8 4 20 . 5 . 14 25 . Kinetic 2844 | . 53 26 79 8 . 4 128 46 84 84 19 . . 61 20 . . . . . . 17 16 58 68 . 1 2 7 9 109 84 37 101 150 232 173 125 18 30 9 354 362 270 Thermal 1367 | . . . 27 8 . 4 62 30 46 37 10 . . 20 54 52 37 103 26 48 65 106 15 1 1 198 . 25 16 20 50 . . . 2 1 1 8 12 13 6 16 39 208 Explosive 68 | . . 14 6 8 . 13 1 6 . . . . . . . 2 . 4 . . 1 5 . . . . . . . . . . . . . . . 4 2 . . 2 . . Electromagnetic 53 | . 43 5 . . . . . . 1 . . . . . . . . . . . . . . . . . . . . . . . . . . . . . . . . . . 4 Robot Hit Streak 47 | . 8 8 15 4 . 5 17 16 16 12 27 . . 17 10 13 4 15 12 11 13 13 9 19 27 23 . 5 7 11 24 19 6 32 36 28 24 19 15 27 8 45 47 43 Robot Miss Streak 9 | . 9 3 3 8 . 2 6 1 3 2 1 . . 5 4 2 3 4 2 3 3 2 1 2 1 2 . 3 2 2 3 1 5 1 4 4 2 4 2 3 2 7 7 6 Penetration Max 2 | . . . . . . . . . 1 1 . . . 1 . . . . . . . . . . . . . . . 1 1 1 1 . 1 2 1 1 . . . 2 2 2 Secondary Targets 35 | . 1 . . . . . . . . . . . . . . . . . . . . . . . . . . . . . . 2 . . . 4 4 . . . . 8 13 3 Max Gunslinging Chain 2 | . 1 . . . . . . . . . . . . . . . . . . . . . . . . . . . . . . 1 . . . 1 1 . . . . 1 2 1 Capacitor 201 | . . . . . . . . . . . . . . . . . . . . . . . . . . . . . . . . . . . . . . . . . . . . 201 Shots Hit Robots 3195 | . 44 25 74 8 4 17 116 53 89 94 26 1 . 58 42 48 17 47 18 38 67 70 17 55 59 179 . 16 19 24 121 84 21 66 118 133 130 137 22 20 12 291 338 377 Core Hits 1814 | . 25 35 32 15 . 35 53 35 39 36 9 1 . 25 15 23 5 21 3 9 39 34 8 22 25 23 . 6 9 12 51 24 8 23 37 76 44 60 43 42 18 227 268 299 Critical Kills 100 | . . . . . . . . 1 5 . . . . 1 . . . 1 . 1 . 1 . . . 1 . . 1 2 9 2 4 1 2 4 2 3 2 2 . 23 16 16 Critical Parts Destroyed 134 | . . . 1 . . . 1 . . 2 1 . . . . . . . . . . . . . . . . . . . 8 3 1 8 5 7 7 3 2 1 4 34 39 7 Critical Strikes 283 | . . . 3 . . . 1 1 7 4 1 . . 1 . 1 . 2 . 1 1 2 1 2 2 1 . . 1 6 18 15 7 11 8 11 11 11 4 3 4 58 55 29 Meltdown 13 | . . . . . . . . 1 3 . . . . . . . . 1 . 1 . 1 . . . 1 . . . . 3 . . . . . . . . . . . . 2 Destroy 242 | . . . 1 . . . 1 . 2 2 1 . . 1 . . . . . . . . . . . . . . 1 2 14 15 7 9 7 11 10 7 4 3 4 58 55 27 Blast 15 | . . . 2 . . . . . . . . . . . . . . . . . . . 1 2 2 . . . . . . . . 2 1 . 1 4 . . . . . . Sever 10 | . . . . . . . . . 2 2 . . . . . 1 . . . . . . . . . . . . . 4 1 . . . . . . . . . . . . . Puncture 3 | . . . . . . . . . . . . . . . . . . 1 . . 1 1 . . . . . . . . . . . . . . . . . . . . . . Melee Attacks 341 | . . . . . 4 13 17 4 13 27 6 1 1 13 . 18 . 4 . . 36 24 . 3 7 6 1 . . . 33 17 . . . . 2 51 . . . 8 32 . Kinetic 93 | . . . . . . . . . . . . . . . . . . . . . . . . . . . . . . . . . . . . . 2 51 . . . 8 32 . Impact 13 | . . . . . . 13 . . . . . . . . . . . . . . . . . . . . . . . . . . . . . . . . . . . . . . Slashing 156 | . . . . . . . 17 4 13 21 6 1 1 13 . 18 . . . . . . . . 5 6 1 . . . 33 17 . . . . . . . . . . . . Piercing 69 | . . . . . . . . . . . . . . . . . . 4 . . 36 24 . 3 2 . . . . . . . . . . . . . . . . . . . Sneak Attacks 70 | . . . . . 4 . 1 2 2 7 1 1 . 8 . 11 . 4 . . . 6 . 1 3 6 . . . . 4 5 . . . . . 4 . . . . . . Combat Hostiles 44 | . . . . . . . 1 2 . 5 . . . 6 . 8 . 4 . . . 6 . 1 . . . . . . 4 5 . . . . . 2 . . . . . . Follow-up Attacks . | . . . . . . . . . . . . . . . . . . . . . . . . . . . . . . . . . . . . . . . . . . . . . Damage Inflicted 128793 | . 884 839 1718 884 . 1639 2681 1900 2231 2206 712 88 . 1846 1025 2184 479 2449 535 1185 2499 3603 600 1622 2188 5662 . 699 668 514 4381 2507 571 2303 2597 5675 4454 6686 2313 1660 785 10690 12904 27727 Guns 52121 | . 624 93 500 44 . 18 1013 512 1020 1044 325 . . 747 245 . . . . . . . . . . . . . 96 270 1752 1743 571 1530 2181 5127 3968 1862 389 419 274 8472 10296 6986 Cannons 40311 | . . 251 732 89 . 61 1000 397 712 389 223 . . 246 776 733 461 1220 535 1185 1300 1779 600 1537 1665 3693 . 669 572 . 1242 . . 739 332 349 414 1537 188 298 108 137 314 13828 Explosions 21528 | . 200 495 446 740 . 1329 376 820 . . . . . . . 356 . 866 . . 318 1231 . . . . . . . . . . . . 77 . . 1829 1736 943 403 1401 1049 6913 Melee 12304 | . . . . . . 223 267 171 488 768 118 88 . 853 . 1095 . 363 . . 871 501 . 85 506 778 . . . . 1367 764 . . . . 39 1456 . . . 289 1214 . Ramming 993 | . 60 . 40 11 . 8 25 . 11 5 46 . . . 4 . 18 . . . 10 8 . . . . . 30 . . 20 . . 34 7 199 33 2 . . . 391 31 . Kinetic 62640 | . 272 304 835 44 . 18 1013 512 1020 1044 325 . . 747 245 . . . . . . 425 408 1537 1665 . . 66 96 270 1752 1743 571 2269 2489 5476 4421 4734 389 419 274 8761 11510 6986 Thermal 45867 | . 200 . 397 89 . 61 1000 397 712 389 223 . . 246 776 733 461 1220 535 1185 1300 1438 192 . 17 4884 . 603 572 244 1242 . . . 101 . . 837 1133 1241 511 952 1363 20613 Explosive 9349 | . . 495 446 740 . 1329 376 820 . . . . . . . 356 . 866 . . 200 1231 . . . . . . . . . . . . . . . 1113 791 . . 586 . . Electromagnetic 638 | . 352 40 . . . . . . . . . . . . . . . . . . 118 . . . . . . . . . . . . . . . . . . . . . . 128 Impact 223 | . . . . . . 223 . . . . . . . . . . . . . . . . . . . . . . . . . . . . . . . . . . . . . . Slashing 7040 | . . . . . . . 267 171 488 768 118 88 . 853 . 1095 . . . . . . . . 283 778 . . . . 1367 764 . . . . . . . . . . . . Piercing 2043 | . . . . . . . . . . . . . . . . . . 363 . . 871 501 . 85 223 . . . . . . . . . . . . . . . . . . . Highest Corruption 14 | . . . . . . . 2 . 2 2 1 . . . . 2 . . . 1 1 1 6 6 . . . . 7 7 4 4 . 2 4 1 5 13 14 . . . . 1 Average Corruption 3 | . . . . . . . 1 . 1 2 1 . . . . 1 . . . 1 1 1 4 6 . . . . 7 5 1 4 . 1 3 1 3 10 13 . . . . 1 Corruption Purged 19 | . . . . . . . 2 . . . 2 . . . . . . . . . . . . . . . . . . 15 . . . . . . . . . . . . . . Effects 496 | . . . . . . . 2 . 15 22 1 . . . . 13 . . . . 10 20 6 77 . . . . 1 17 20 40 . 12 44 . 35 115 33 . . . . 13 Message Errors 135 | . . . . . . . 1 . 7 10 1 . . . . 4 . . . . 3 6 1 15 . . . . . 3 8 9 . 8 15 . 8 24 6 . . . . 6 Matter Fused 99 | . . . . . . . . . . . . . . . . . . . . . . . . 20 . . . . 1 7 3 11 . . 10 . 7 30 10 . . . . . Heat Flow Errors 61 | . . . . . . . 1 . 2 4 . . . . . 2 . . . . . . . 12 . . . . . 2 1 5 . 2 6 . 5 13 6 . . . . . Energy Discharges 89 | . . . . . . . . . 4 5 . . . . . 6 . . . . 3 7 1 8 . . . . . 2 3 10 . 1 5 . 6 18 5 . . . . 5 Parts Rejected 1 | . . . . . . . . . . . . . . . . . . . . . . . . . . . . . . . . . . . . . . 1 . . . . . . Data Loss (minor) 81 | . . . . . . . . . 2 3 . . . . . 1 . . . . 4 7 2 15 . . . . . 2 5 4 . 1 8 . 6 16 3 . . . . 2 Data Loss (major) 12 | . . . . . . . . . . . . . . . . . . . . . . . . 6 . . . . . . . . . . . . . 5 1 . . . . . Misfires 6 | . . . . . . . . . . . . . . . . . . . . . . . 1 1 . . . . . 1 . . . . . . 1 . 2 . . . . . Alerts 3 | . . . . . . . . . . . . . . . . . . . . . . . . . . . . . . . . . . . . . . 3 . . . . . . Misdirections 1 | . . . . . . . . . . . . . . . . . . . . . . . . . . . . . . . . . . . . . . 1 . . . . . . Weapon Failures 8 | . . . . . . . . . . . . . . . . . . . . . . . 1 . . . . . . . . 1 . . . . 2 4 . . . . . . Overload Shots . | . . . . . . . . . . . . . . . . . . . . . . . . . . . . . . . . . . . . . . . . . . . . . Overflow Damage 3691 | . 56 14 . . . 33 81 64 90 12 17 . . 105 12 192 31 251 53 6 28 143 10 35 88 143 . 20 . . 267 232 . 31 . 11 . 425 86 . 12 102 189 852 Projectiles 1272 | . . . . . . . 5 . 16 1 17 . . . 12 . 31 19 53 6 24 1 10 35 88 . . 20 . . . . . 31 . 4 . 41 . . . 6 . 852 Explosions 709 | . 56 14 . . . 21 17 64 . . . . . . . 30 . 169 . . . 108 . . . . . . . . . . . . . . . 111 86 . 12 . 21 . Melee 1710 | . . . . . . 12 59 . 74 11 . . . 105 . 162 . 63 . . 4 34 . . . 143 . . . . 267 232 . . . 7 . 273 . . . 96 168 . Knockbacks 76 | . . 3 1 . . . . . 1 . . . . . . . . . . . . 6 . 12 8 . . 1 . . . . . 3 6 8 7 18 . . . 2 . . Impact 6 | . . . . . . . . . 1 . . . . . . . . . . . . . . . . . . . . . . . . . . 3 . . . . . 2 . . Kinetic 70 | . . 3 1 . . . . . . . . . . . . . . . . . . 6 . 12 8 . . 1 . . . . . 3 6 5 7 18 . . . . . . Secondary . | . . . . . . . . . . . . . . . . . . . . . . . . . . . . . . . . . . . . . . . . . . . . . Self-Inflicted Damage 952 | . . 62 85 17 . 53 . 24 . . . . . . . . . . . . . 191 . . . . . . . . . . . . 14 . . . 102 . . 24 8 372 Shots 33 | . . 4 2 1 . 2 . 1 . . . . . . . . . . . . . 5 . . . . . . . . . . . . 2 . . . 4 . . 2 1 9 Rammed 73 | . 6 . 6 1 . 2 4 . 3 1 7 . . . 1 . 3 . . . 1 1 . . . . . 1 . . . . . 5 1 11 2 1 . . . 14 2 . Targets Rammed 93 | . 12 . 7 1 . 2 6 . 3 1 7 . . . 1 . 3 . . . 1 1 . . . . . 2 . . 1 . . 5 1 15 2 2 . . . 17 3 . Kicked 6 | . 6 . . . . . . . . . . . . . . . . . . . . . . . . . . . . . . . . . . . . . . . . . . . Crushed 14 | . . . 1 . . . 2 . . . . . . . . . . . . . . . . . . . . 1 . . 1 . . . . 4 . 1 . . . 3 1 . Highest Temperature 310 | . 24 37 224 48 . 28 155 112 113 199 . . . 132 107 174 . 12 . 237 268 174 . 239 78 . . 69 78 191 310 237 . 191 194 36 213 252 163 160 160 160 198 178 Average Temperature 63 | . 12 16 52 22 . 16 40 46 17 37 . . . 33 29 24 . 5 . 97 57 63 . 78 38 . . 15 32 97 38 87 . 81 87 12 98 88 112 132 120 99 93 105 Received Heat Transfer 3562 | . 84 68 195 63 . 120 252 96 144 243 . . 18 204 204 84 15 111 15 . 72 165 20 64 17 . . 4 14 . 225 64 12 9 123 171 71 220 12 44 18 48 24 249 Effects 2 | . . . . . . . . . . . . . . . . . . . . . 2 . . . . . . . . . . . . . . . . . . . . . . . Interference 2 | . . . . . . . . . . . . . . . . . . . . . 2 . . . . . . . . . . . . . . . . . . . . . . . Siege Activations 76 | . . . . . . . . . . . . . . . . . . . . . 5 5 1 8 3 . . . . . 9 4 1 3 8 7 7 2 2 1 . 4 2 4 Total Turns 4677 | . . . . . . . . . . . . . . . . . . . . . 1602 190 10 346 140 . . . . . 1273 246 10 58 172 136 141 95 14 27 . 65 84 68 Longest Duration 743 | . . . . . . . . . . . . . . . . . . . . . 743 152 10 215 107 . . . . . 439 155 10 27 53 42 30 60 9 27 . 41 47 22 Robots Corrupted 1 | . . . . . . . . . . . . . . . . . . . . . . . . . . . . . . . . . . . . . . . . . . . . 1 Combat Hostiles 1 | . . . . . . . . . . . . . . . . . . . . . . . . . . . . . . . . . . . . . . . . . . . . 1 Parts Fried 8 | . . . . . . . . . . . . . . . . . . . . . . . . . . . . . . . . . . . . . . . . . . 1 1 6 Impact Corruptions 13 | . . . . . . 4 . . . . . . . . . . . . . . . . . . . . . . . . 1 . . . . 2 . . . . . 5 1 . Robots Melted 88 | . . . . . . . . 1 3 . . . . . . . . 1 1 1 . 2 . . . 1 . . 1 . 3 . . . 1 . . 5 9 15 4 11 7 22 Combat Hostiles 80 | . . . . . . . . 1 2 . . . . . . . . 1 1 1 . 2 . . . 1 . . 1 . 3 . . . 1 . . 5 9 10 4 9 7 22 Parts Melted 362 | . . . . . . . 2 1 7 . . . . . 3 1 . 5 1 6 5 6 . . . 4 . . 4 . 9 2 . . 7 2 . 26 42 59 17 34 44 75 Heat Transferred 73791 | . 150 . 703 148 . 111 1739 703 1258 703 333 . . 444 999 962 633 1575 694 1699 1675 1945 259 . 37 8264 . 684 646 555 1507 . . . 560 . . 3200 5840 6960 2640 5440 6783 13942 Parts Sabotaged . | . . . . . . . . . . . . . . . . . . . . . . . . . . . . . . . . . . . . . . . . . . . . . Parts Stolen . | . . . . . . . . . . . . . . . . . . . . . . . . . . . . . . . . . . . . . . . . . . . . . Parts Stripped . | . . . . . . . . . . . . . . . . . . . . . . . . . . . . . . . . . . . . . . . . . . . . . Power Chain Reactions . | . . . . . . . . . . . . . . . . . . . . . . . . . . . . . . . . . . . . . . . . . . . . . Missiles Intercepted . | . . . . . . . . . . . . . . . . . . . . . . . . . . . . . . . . . . . . . . . . . . . . . Alert | -11 -10 -10 -9 -9 -9 -8 -8 -8 -8 -8 -7 -7 -7 -7 -7 -7 -6 -6 -5 -5 -5 -5 -5 -5 -4 -4 -4 -4 -4 -4 -4 -4 -3 -3 -3 -2 -2 -2 -2 -1 -1 -1 -1 -1 ------- Run | Scr Mat Min Mat Min Exi Min Mat Gar Sto Gar Fac Was Fac Gar Fac Gar Fac Gar Fac Was Fac Gar Fac Gar Fac Was Fac Ext Cet Arc Hub Gar Res Tes Gar Res Qua Sec Gar Acc Gar Acc Com Ac0 Peak Influence 797 | . 321 120 291 397 . 309 331 762 378 701 375 . 301 690 411 502 343 582 305 17 252 605 402 301 244 28 56 377 536 272 763 531 526 114 226 538 297 351 797 757 470 613 413 . Initial 477 | . . 40 3 97 . . 11 45 371 40 367 . . 74 361 42 263 30 305 9 11 35 317 142 156 22 . . 210 214 . 192 298 21 3 105 68 86 157 477 344 281 92 . Average 216 | . 171 34 131 188 . 171 129 464 159 425 121 . 112 426 163 351 273 465 138 13 55 392 344 243 86 5 25 185 389 153 312 348 104 28 160 149 103 139 536 547 438 201 152 . Maximum Alert Level 3 | . 1 . 1 1 . 1 1 3 1 3 1 . 1 2 2 2 1 2 1 . 1 2 2 1 1 . . 1 2 1 3 2 2 . 1 2 1 1 3 3 2 2 3 . Low Security (%) 52 | . 42 100 77 71 . 64 72 34 73 18 80 100 87 21 64 15 7 13 63 100 95 13 . 20 97 100 100 52 1 58 28 19 76 100 93 75 93 80 10 . . 67 30 . Level 1 21 | . 57 . 22 28 . 35 27 3 26 26 19 . 12 17 34 42 92 11 36 . 4 23 77 79 2 . . 47 41 41 44 43 16 . 6 13 6 19 18 . 12 10 11 . Level 2 19 | . . . . . . . . 37 . 50 . . . 60 1 41 . 74 . . . 62 22 . . . . . 57 . 25 36 7 . . 11 . . 40 93 87 21 22 . Level 3 7 | . . . . . . . . 24 . 4 . . . . . . . . . . . . . . . . . . . . 2 . . . . . . . 30 6 . . 35 . Level 4 . | . . . . . . . . . . . . . . . . . . . . . . . . . . . . . . . . . . . . . . . . . . . . . Level 5 . | . . . . . . . . . . . . . . . . . . . . . . . . . . . . . . . . . . . . . . . . . . . . . High Security . | . . . . . . . . . . . . . . . . . . . . . . . . . . . . . . . . . . . . . . . . . . . . . Max Security . | . . . . . . . . . . . . . . . . . . . . . . . . . . . . . . . . . . . . . . . . . . . . . Squads Dispatched 158 | . 4 . 4 . . 1 3 . 5 . 3 . 6 . 6 . 1 . 3 . 10 . 1 . 4 . . 2 . . 13 . 6 5 . 8 6 17 . 6 . 24 20 . Investigation 19 | . 3 . 2 . . . 2 . 2 . . . 2 . 1 . . . . . . . . . . . . . . . 2 . 1 . . . . 4 . . . . . . Extermination 71 | . . . . . . . . . . . 3 . 2 . 2 . 1 . 1 . 4 . . . 2 . . . . . 4 . . 5 . 4 5 8 . 2 . 11 17 . Reinforcement 47 | . 1 . 2 . . 1 1 . . . . . . . 2 . . . 2 . 3 . 1 . 2 . . 2 . . 7 . 5 . . 4 1 5 . 1 . 4 3 . Assault 4 | . . . . . . . . . . . . . . . . . . . . . . . . . . . . . . . . . . . . . . . . 3 . 1 . . Garrison 17 | . . . . . . . . . 3 . . . 2 . 1 . . . . . 3 . . . . . . . . . . . . . . . . . . . . 8 . . Intercept . | . . . . . . . . . . . . . . . . . . . . . . . . . . . . . . . . . . . . . . . . . . . . . Construction Impeded 3 | . . . . . . 1 1 . . . . . . . . . . . . . . . . . . . . . . . 1 . . . . . . . . . . . . . Haulers Reinforced 7 | . . . . . . . . . . . . . . . . . . . . . . . . . 1 . . . . . 1 . 1 . . 2 . 1 . 1 . . . . Active Scanning Responses . | . . . . . . . . . . . . . . . . . . . . . . . . . . . . . . . . . . . . . . . . . . . . . Cargo Convoy Interrupts 2 | . . . . . . . . . . . 1 . . . . . . . . . . . . . . . . . . . . . . . . 1 . . . . . . . . Alert ID Control Effect 9 | . . . . . . . . . . . . . . . . . . . . . . . . . . . . . . . . . . . . 4 . 4 . . . . 1 . Stealth | -11 -10 -10 -9 -9 -9 -8 -8 -8 -8 -8 -7 -7 -7 -7 -7 -7 -6 -6 -5 -5 -5 -5 -5 -5 -4 -4 -4 -4 -4 -4 -4 -4 -3 -3 -3 -2 -2 -2 -2 -1 -1 -1 -1 -1 --------- Run | Scr Mat Min Mat Min Exi Min Mat Gar Sto Gar Fac Was Fac Gar Fac Gar Fac Gar Fac Was Fac Gar Fac Gar Fac Was Fac Ext Cet Arc Hub Gar Res Tes Gar Res Qua Sec Gar Acc Gar Acc Com Ac0 Distress Signals 39 | . 1 . 1 . . . 4 . 3 . . . . . . . . . . . . . . . . . 1 4 2 . 1 . 8 . . . . 1 . . . . 13 . Communications Jammed 341 | . . . . . . . . . . . . . . . 8 . . . . . . . 1 . 25 . . . . . 12 19 1 . 22 23 13 21 . 80 . 101 15 . Distress Signals 339 | . . . . . . . . . . . . . . . 8 . . . . . . . 1 . 25 . . . . . 11 19 1 . 22 23 13 21 . 80 . 100 15 . Times Spotted 1122 | . 26 14 28 13 . 22 45 24 25 22 3 1 11 18 17 23 15 21 7 5 23 26 5 23 27 6 2 21 13 25 38 21 16 15 24 48 40 69 25 16 6 115 86 92 Peak Tracking Total 14 | . 5 3 5 5 . 3 8 6 5 4 2 1 5 4 3 6 4 5 3 2 4 7 2 5 4 4 2 5 5 1 5 5 3 2 4 5 4 5 8 14 4 8 8 6 Tactical Retreats 52 | . . . . . . 1 1 . . 4 . . . 1 . 1 . 3 . . . 1 1 . 2 . . . . . 3 . . . 1 3 6 9 7 1 . 5 2 . Traps | -11 -10 -10 -9 -9 -9 -8 -8 -8 -8 -8 -7 -7 -7 -7 -7 -7 -6 -6 -5 -5 -5 -5 -5 -5 -4 -4 -4 -4 -4 -4 -4 -4 -3 -3 -3 -2 -2 -2 -2 -1 -1 -1 -1 -1 ------- Run | Scr Mat Min Mat Min Exi Min Mat Gar Sto Gar Fac Was Fac Gar Fac Gar Fac Gar Fac Was Fac Gar Fac Gar Fac Was Fac Ext Cet Arc Hub Gar Res Tes Gar Res Qua Sec Gar Acc Gar Acc Com Ac0 Traps Triggered 73 | . 1 . 1 . . . . 8 6 9 2 . . 1 . 3 3 2 2 . 2 11 1 7 1 . . . . . . 1 1 . 2 2 . . . . . . 7 . Indirectly 4 | . . . . . . . . . 2 . . . . . . . . . . . 2 . . . . . . . . . . . . . . . . . . . . . . . Trap Hack Attempts . | . . . . . . . . . . . . . . . . . . . . . . . . . . . . . . . . . . . . . . . . . . . . . Triggered . | . . . . . . . . . . . . . . . . . . . . . . . . . . . . . . . . . . . . . . . . . . . . . Disarmed . | . . . . . . . . . . . . . . . . . . . . . . . . . . . . . . . . . . . . . . . . . . . . . Reprogrammed . | . . . . . . . . . . . . . . . . . . . . . . . . . . . . . . . . . . . . . . . . . . . . . Reused . | . . . . . . . . . . . . . . . . . . . . . . . . . . . . . . . . . . . . . . . . . . . . . Traps Extracted . | . . . . . . . . . . . . . . . . . . . . . . . . . . . . . . . . . . . . . . . . . . . . . Installed . | . . . . . . . . . . . . . . . . . . . . . . . . . . . . . . . . . . . . . . . . . . . . . Triggered 2 | . . . . . . . . . . . 1 . . . . . . . . . . . . . . . . . . . 1 . . . . . . . . . . . . . Machines | -11 -10 -10 -9 -9 -9 -8 -8 -8 -8 -8 -7 -7 -7 -7 -7 -7 -6 -6 -5 -5 -5 -5 -5 -5 -4 -4 -4 -4 -4 -4 -4 -4 -3 -3 -3 -2 -2 -2 -2 -1 -1 -1 -1 -1 ---------- Run | Scr Mat Min Mat Min Exi Min Mat Gar Sto Gar Fac Was Fac Gar Fac Gar Fac Gar Fac Was Fac Gar Fac Gar Fac Was Fac Ext Cet Arc Hub Gar Res Tes Gar Res Qua Sec Gar Acc Gar Acc Com Ac0 Machines Disabled 130 | . 5 1 3 . . . 1 4 4 3 . . . 4 1 4 1 3 2 . 12 5 . 2 1 . . 6 . 3 7 3 . 2 2 4 9 12 2 1 . 4 7 12 Max in Single Turn 5 | . 3 1 1 . . . 1 1 1 1 . . . 1 1 1 . 1 2 . 5 1 . 1 1 . . 1 . 1 1 1 . 1 1 1 1 1 1 1 . 1 2 2 Garrison Access 3 | . . . . . . . . . . . . . . . . . . . . . 1 . . . . . . . . . 1 . . . . . 1 . . . . . . . Garrison Relay 28 | . . . . . . . . 3 . 3 . . . 4 . 3 . 3 . . . 4 . 2 . . . . . . . 3 . . 2 . . . 1 . . . . . Phase Generator 1 | . . . . . . . . . . . . . . . . . . . . . . . . . . . . . . . . . . . . . . . . . . . 1 . Network Hub 2 | . . . . . . . . . . . . . . . . . . . . . . . . . . . . . . . 2 . . . . . . . . . . . . . Energy Cycler 1 | . . . . . . . . . . . . . . . . . . . . . . . . . . . . 1 . . . . . . . . . . . . . . . . Machines Sabotaged . | . . . . . . . . . . . . . . . . . . . . . . . . . . . . . . . . . . . . . . . . . . . . . Garrisons Compromised 1 | . . . . . . . . . . . 1 . . . . . . . . . . . . . . . . . . . . . . . . . . . . . . . . . Overloaded Fab Kills . | . . . . . . . . . . . . . . . . . . . . . . . . . . . . . . . . . . . . . . . . . . . . . Hacking | -11 -10 -10 -9 -9 -9 -8 -8 -8 -8 -8 -7 -7 -7 -7 -7 -7 -6 -6 -5 -5 -5 -5 -5 -5 -4 -4 -4 -4 -4 -4 -4 -4 -3 -3 -3 -2 -2 -2 -2 -1 -1 -1 -1 -1 --------- Run | Scr Mat Min Mat Min Exi Min Mat Gar Sto Gar Fac Was Fac Gar Fac Gar Fac Gar Fac Was Fac Gar Fac Gar Fac Was Fac Ext Cet Arc Hub Gar Res Tes Gar Res Qua Sec Gar Acc Gar Acc Com Ac0 Machines Accessed 142 | . 8 . 4 . 2 . 11 . 13 . 5 . 3 . 4 . 5 . 4 . 11 . 2 . 5 . 4 2 1 . 6 . 4 8 . 6 10 13 . 1 . . 8 2 Terminals 94 | . 6 . 2 . . . 7 . 10 . 3 . . . 3 . 2 . 2 . 8 . . . 5 . 4 2 1 . 4 . 4 3 . 5 6 10 . . . . 7 . Fabricators 8 | . . . . . . . . . . . . . . . . . 1 . 2 . 1 . 1 . . . . . . . . . . 2 . 1 . . . . . . . . Repair Stations 10 | . . . 1 . . . 2 . 1 . . . 1 . . . 1 . . . . . . . . . . . . . . . . 2 . . 1 . . . . . 1 . Recycling Units 8 | . 2 . 1 . . . 1 . 1 . 2 . 1 . . . . . . . . . . . . . . . . . . . . . . . . . . . . . . . Scanalyzers 4 | . . . . . . . . . . . . . . . . . . . . . . . . . . . . . . . . . . . . . 2 2 . . . . . . Garrison Access 14 | . . . . . . . 1 . 1 . . . 1 . 1 . 1 . . . 2 . 1 . . . . . . . 2 . . 1 . . 1 1 . 1 . . . . Total Hacks 403 | . 21 . 12 . 2 . 38 . 35 . 8 . 5 . 9 . 10 . 13 . 22 . 5 . 8 . 10 2 2 . 16 . 13 31 . 29 36 40 . 1 . . 33 2 Successful 200 | . 13 . 8 . 2 . 25 . 17 . 3 . 4 . 4 . 4 . 8 . 13 . 1 . . . 4 2 1 . 8 . 5 16 . 12 21 14 . 1 . . 12 2 Failed 203 | . 8 . 4 . . . 13 . 18 . 5 . 1 . 5 . 6 . 5 . 9 . 4 . 8 . 6 . 1 . 8 . 8 15 . 17 15 26 . . . . 21 . Catastrophic 45 | . . . . . . . 3 . 5 . 3 . . . 1 . 1 . . . . . . . 3 . . . . . 1 . 2 2 . 5 5 10 . . . . 4 . Database Lockouts . | . . . . . . . . . . . . . . . . . . . . . . . . . . . . . . . . . . . . . . . . . . . . . Manual 197 | . 20 . 9 . 1 . 20 . 22 . 6 . 4 . 5 . 7 . 9 . 10 . 4 . 3 . . . 1 . 7 . 8 11 . 10 10 13 . . . . 17 . Terminals 307 | . 19 . 7 . . . 26 . 30 . 4 . . . 7 . 6 . 9 . 18 . . . 8 . 10 2 2 . 12 . 13 14 . 27 30 32 . . . . 31 . Fabricators 17 | . . . . . . . . . . . . . . . . . 1 . 4 . 1 . 2 . . . . . . . . . . 7 . 2 . . . . . . . . Repair Stations 29 | . . . 3 . . . 9 . 2 . . . 1 . . . 2 . . . . . . . . . . . . . . . . 9 . . 1 . . . . . 2 . Recycling Units 12 | . 2 . 2 . . . 1 . 1 . 4 . 2 . . . . . . . . . . . . . . . . . . . . . . . . . . . . . . . Scanalyzers 10 | . . . . . . . . . . . . . . . . . . . . . . . . . . . . . . . . . . . . . 4 6 . . . . . . Garrison Access 24 | . . . . . . . 2 . 2 . . . 2 . 2 . 1 . . . 3 . 3 . . . . . . . 4 . . 1 . . 1 2 . 1 . . . . Terminal Hacks 94 | . 8 . 2 . 2 . 11 . 9 . 1 . . . 1 . 1 . 3 . 5 . . . . . 4 2 1 . 4 . 3 5 . 7 12 5 . . . . 6 2 Record 2 | . . . . . 1 . . . . . . . . . . . . . . . . . . . . . . . . . . . . . . . . . . . . . . 1 Part Schematic 6 | . 4 . . . . . . . . . . . . . . . . . . . . . . . . . . . . . . . . . . . 2 . . . . . . . Robot Schematic 1 | . . . 1 . . . . . . . . . . . . . . . . . . . . . . . . . . . . . . . . . . . . . . . . . Robot Analysis 4 | . 2 . 1 . . . 1 . . . . . . . . . . . . . . . . . . . . . . . . . . . . . . . . . . . . . Prototype ID Bank 4 | . 1 . . . . . . . . . . . . . . . . . 1 . . . . . . . . . . . . . . . . 1 1 . . . . . . . Open Door 11 | . . . . . . . . . 3 . . . . . . . . . . . . . . . . . 1 2 1 . . . . . . . . 3 . . . . 1 . Open DSF 3 | . . . . . . . . . . . 1 . . . . . . . . . 1 . . . . . . . . . . . 1 . . . . . . . . . . . Branch Access Points 3 | . . . . . . . . . . . . . . . . . . . 1 . . . . . . . 1 . . . . . . . . 1 . . . . . . . . Emergency Access Points 4 | . . . . . . . . . 1 . . . . . . . . . . . . . . . . . . . . . . . . 1 . 1 . . . . . . 1 . Machine Index 1 | . . . . . . . . . . . . . . . . . . . . . . . . . . . . . . . . . . . . 1 . . . . . . . . Terminal Index 2 | . . . . . . . . . . . . . . . . . . . . . . . . . . . . . . . . . . . . . 1 . . . . . 1 . Garrison Index 2 | . . . . . . . 1 . . . . . . . . . . . . . 1 . . . . . . . . . . . . . . . . . . . . . . . Alert Level 2 | . . . . . . . 2 . . . . . . . . . . . . . . . . . . . . . . . . . . . . . . . . . . . . . Unreport Threat 18 | . . . . . . . 3 . 3 . . . . . . . 1 . 1 . 1 . . . . . . . . . 2 . 2 1 . 1 3 . . . . . . . Locate Traps 13 | . . . . . . . 2 . 1 . . . . . . . . . . . 1 . . . . . 1 . . . 1 . . . . 1 1 2 . . . . 3 . Dispatch Records 2 | . 1 . . . . . . . . . . . . . . . . . . . . . . . . . . . . . . . . . . . 1 . . . . . . . Patrol Status 1 | . . . . . . . . . . . . . . . . . . . . . . . . . . . . . . . . . . 1 . . . . . . . . . . Hauler Manifests 3 | . . . . . . . . . . . . . . . . . . . . . 1 . . . . . 1 . . . . . . . . . 1 . . . . . . . Registered Components 1 | . . . . . . . . . . . . . . . . . . . . . . . . . . . . . . . . . . . . . 1 . . . . . . . Zone Layout 9 | . . . . . . . 2 . 1 . . . . . 1 . . . . . . . . . . . . . . . 1 . . 2 . 1 1 . . . . . . . EX-Prototype ID Bank 1 | . . . . . 1 . . . . . . . . . . . . . . . . . . . . . . . . . . . . . . . . . . . . . . . Gate Test 138-A 1 | . . . . . . . . . . . . . . . . . . . . . . . . . . . . . . . . . . . . . . . . . . . . 1 Fabricator Hacks 1 | . . . . . . . . . . . . . . . . . . . . . . . . . . . . . . . . . . 1 . . . . . . . . . . Network Status 1 | . . . . . . . . . . . . . . . . . . . . . . . . . . . . . . . . . . 1 . . . . . . . . . . Repair Station Hacks 18 | . . . 3 . . . 6 . 2 . . . . . . . 2 . . . . . . . . . . . . . . . . 4 . . 1 . . . . . . . Scan Component 10 | . . . 2 . . . 3 . 1 . . . . . . . 1 . . . . . . . . . . . . . . . . 2 . . 1 . . . . . . . Repair 8 | . . . 1 . . . 3 . 1 . . . . . . . 1 . . . . . . . . . . . . . . . . 2 . . . . . . . . . . Recycling Unit Hacks . | . . . . . . . . . . . . . . . . . . . . . . . . . . . . . . . . . . . . . . . . . . . . . Scanalyzer 5 | . . . . . . . . . . . . . . . . . . . . . . . . . . . . . . . . . . . . . 3 2 . . . . . . Insert Component 5 | . . . . . . . . . . . . . . . . . . . . . . . . . . . . . . . . . . . . . 3 2 . . . . . . Garrison Access Hacks 16 | . . . . . . . 1 . 1 . . . 1 . 1 . 1 . . . 3 . 1 . . . . . . . 3 . . 1 . . 1 1 . 1 . . . . Unlock Access 11 | . . . . . . . 1 . 1 . . . 1 . 1 . 1 . . . 1 . 1 . . . . . . . 1 . . 1 . . . 1 . 1 . . . . Seal Access 3 | . . . . . . . . . . . . . . . . . . . . . 1 . . . . . . . . . 1 . . . . . 1 . . . . . . . Coupler Status 2 | . . . . . . . . . . . . . . . . . . . . . 1 . . . . . . . . . 1 . . . . . . . . . . . . . Unauthorized Hacks 66 | . 5 . 3 . . . 7 . 5 . 2 . 3 . 2 . . . 5 . 5 . . . . . . . . . 1 . 2 5 . 5 4 6 . . . . 6 . Terminals 43 | . 3 . 2 . . . 5 . 4 . . . . . 1 . . . 3 . 4 . . . . . . . . . . . 2 3 . 3 4 4 . . . . 5 . Track 10 | . . . . . . . 1 . 1 . . . . . . . . . . . 2 . . . . . . . . . . . . 2 . . . 2 . . . . 2 . Assimilate 3 | . 1 . . . . . 1 . . . . . . . . . . . . . . . . . . . . . . . . . . . . 1 . . . . . . . . Botnet 22 | . 2 . 2 . . . 2 . 2 . . . . . 1 . . . 1 . 1 . . . . . . . . . . . 2 1 . 2 3 1 . . . . 2 . Disrupt 1 | . . . . . . . . . . . . . . . . . . . 1 . . . . . . . . . . . . . . . . . . . . . . . . . Operators 7 | . . . . . . . 1 . 1 . . . . . . . . . 1 . 1 . . . . . . . . . . . . . . . 1 1 . . . . 1 . Fabricators 6 | . . . . . . . . . . . . . . . . . . . 2 . 1 . . . . . . . . . . . . 1 . 2 . . . . . . . . Fabnet 5 | . . . . . . . . . . . . . . . . . . . 2 . 1 . . . . . . . . . . . . 1 . 1 . . . . . . . . Haulers 1 | . . . . . . . . . . . . . . . . . . . . . . . . . . . . . . . . . . . . 1 . . . . . . . . Repair Stations 3 | . . . . . . . . . . . . . 1 . . . . . . . . . . . . . . . . . . . . 1 . . . . . . . . 1 . Mechanics 3 | . . . . . . . . . . . . . 1 . . . . . . . . . . . . . . . . . . . . 1 . . . . . . . . 1 . Recycling Units 8 | . 2 . 1 . . . 1 . 1 . 2 . 1 . . . . . . . . . . . . . . . . . . . . . . . . . . . . . . . Reject 1 | . . . . . . . . . . . 1 . . . . . . . . . . . . . . . . . . . . . . . . . . . . . . . . . Recyclers 1 | . . . . . . . . . . . 1 . . . . . . . . . . . . . . . . . . . . . . . . . . . . . . . . . Tunnel 6 | . 2 . 1 . . . 1 . 1 . . . 1 . . . . . . . . . . . . . . . . . . . . . . . . . . . . . . . Scanalyzers 1 | . . . . . . . . . . . . . . . . . . . . . . . . . . . . . . . . . . . . . . 1 . . . . . . Researchers 1 | . . . . . . . . . . . . . . . . . . . . . . . . . . . . . . . . . . . . . . 1 . . . . . . Garrison Access 5 | . . . . . . . 1 . . . . . 1 . 1 . . . . . . . . . . . . . . . 1 . . . . . . 1 . . . . . . Restock 1 | . . . . . . . 1 . . . . . . . . . . . . . . . . . . . . . . . . . . . . . . . . . . . . . Reprogram 2 | . . . . . . . . . . . . . 1 . 1 . . . . . . . . . . . . . . . . . . . . . . . . . . . . . Eject 2 | . . . . . . . . . . . . . . . . . . . . . . . . . . . . . . . 1 . . . . . . 1 . . . . . . Data Cores Recovered 2 | . . . . . . . . . . . . . . . . . . . . . . . . . 1 . . . . . . . . . . . . . . . . . 1 . Used 1 | . . . . . . . . . . . . . . . . . . . . . . . . . . . . . . . . . . . . . . . . . . . 1 . Hacking Detections 110 | . 6 . 4 . . . 10 . 9 . 5 . 2 . 3 . 3 . 3 . 9 . 2 . 5 . 4 2 . . 4 . 3 5 . 5 7 11 . 1 . . 7 . Full Trace Events 5 | . . . . . . . 1 . 1 . . . . . . . . . . . . . . . . . . . . . . . . . . . . 3 . . . . . . Feedback Events 1 | . . . . . . . . . . . . . . . . . . . . . . . . . . . . . . . . . . . . . . 1 . . . . . . Corruption 1 | . . . . . . . . . . . . . . . . . . . . . . . . . . . . . . . . . . . . . . 1 . . . . . . Feedback Blocked . | . . . . . . . . . . . . . . . . . . . . . . . . . . . . . . . . . . . . . . . . . . . . . Robot Schematics Acquired 1 | . . . 1 . . . . . . . . . . . . . . . . . . . . . . . . . . . . . . . . . . . . . . . . . Robots Built . | . . . . . . . . . . . . . . . . . . . . . . . . . . . . . . . . . . . . . . . . . . . . . Authchips . | . . . . . . . . . . . . . . . . . . . . . . . . . . . . . . . . . . . . . . . . . . . . . Time . | . . . . . . . . . . . . . . . . . . . . . . . . . . . . . . . . . . . . . . . . . . . . . Total Robot Build Rating . | . . . . . . . . . . . . . . . . . . . . . . . . . . . . . . . . . . . . . . . . . . . . . Part Schematics Acquired 5 | . 3 . . . . . . . . . . . . . . . . . . . . . . . . . . . . . . . . . . . 2 . . . . . . . Parts Built . | . . . . . . . . . . . . . . . . . . . . . . . . . . . . . . . . . . . . . . . . . . . . . Authchips . | . . . . . . . . . . . . . . . . . . . . . . . . . . . . . . . . . . . . . . . . . . . . . Time . | . . . . . . . . . . . . . . . . . . . . . . . . . . . . . . . . . . . . . . . . . . . . . Total Part Build Rating . | . . . . . . . . . . . . . . . . . . . . . . . . . . . . . . . . . . . . . . . . . . . . . Parts Repaired 8 | . . . 1 . . . 3 . 1 . . . . . . . 1 . . . . . . . . . . . . . . . . 2 . . . . . . . . . . Time 401 | . . . 26 . . . 108 . 44 . . . . . . . 70 . . . . . . . . . . . . . . . . 153 . . . . . . . . . . Parts Recycled . | . . . . . . . . . . . . . . . . . . . . . . . . . . . . . . . . . . . . . . . . . . . . . Recycled Matter . | . . . . . . . . . . . . . . . . . . . . . . . . . . . . . . . . . . . . . . . . . . . . . Retrieved Matter . | . . . . . . . . . . . . . . . . . . . . . . . . . . . . . . . . . . . . . . . . . . . . . Retrieved Components . | . . . . . . . . . . . . . . . . . . . . . . . . . . . . . . . . . . . . . . . . . . . . . Parts Scanalyzed . | . . . . . . . . . . . . . . . . . . . . . . . . . . . . . . . . . . . . . . . . . . . . . Part Schematics Acquired . | . . . . . . . . . . . . . . . . . . . . . . . . . . . . . . . . . . . . . . . . . . . . . Parts Damaged . | . . . . . . . . . . . . . . . . . . . . . . . . . . . . . . . . . . . . . . . . . . . . . Bothacking | -11 -10 -10 -9 -9 -9 -8 -8 -8 -8 -8 -7 -7 -7 -7 -7 -7 -6 -6 -5 -5 -5 -5 -5 -5 -4 -4 -4 -4 -4 -4 -4 -4 -3 -3 -3 -2 -2 -2 -2 -1 -1 -1 -1 -1 ------------ Run | Scr Mat Min Mat Min Exi Min Mat Gar Sto Gar Fac Was Fac Gar Fac Gar Fac Gar Fac Was Fac Gar Fac Gar Fac Was Fac Ext Cet Arc Hub Gar Res Tes Gar Res Qua Sec Gar Acc Gar Acc Com Ac0 Used RIF Installer 11 | . . . . . . . . 1 . 1 . . . 1 . 1 . 1 . . . 1 . 1 . . . . . . . 1 . . 1 . . . 1 . 1 . . . Coupler Efficiency 2 | . . . . . . . . . . . . . . . . . . . . . . . . 1 . . . . . . . . . . . . . . 1 . . . . . Command Fork 1 | . . . . . . . . . . . . . . 1 . . . . . . . . . . . . . . . . . . . . . . . . . . . . . . Threat Obfuscator 1 | . . . . . . . . . . . . . . . . 1 . . . . . . . . . . . . . . . . . . . . . . . . . . . . Signal Jammer 1 | . . . . . . . . . . 1 . . . . . . . . . . . . . . . . . . . . . . . . . . . . . . . . . . Robot Detection 1 | . . . . . . . . . . . . . . . . . . . . . . 1 . . . . . . . . . . . . . . . . . . . . . . Watcher Feeds 1 | . . . . . . . . . . . . . . . . . . 1 . . . . . . . . . . . . . . . . . . . . . . . . . . Patrol Navigation 1 | . . . . . . . . . . . . . . . . . . . . . . . . . . . . . . . . . . . . . . . . . 1 . . . Alert ID Control 1 | . . . . . . . . . . . . . . . . . . . . . . . . . . . . . . . . . . . 1 . . . . . . . . . Autoassimilate 1 | . . . . . . . . . . . . . . . . . . . . . . . . . . . . . . . . 1 . . . . . . . . . . . . Robots Hacked 174 | . . . . . 4 . . . . 4 . . . 3 2 8 3 3 1 . . 5 1 13 8 4 . 3 3 2 2 13 5 1 15 8 4 16 . 4 . 11 28 . Non-combat 27 | . . . . . 3 . . . . . . . . . 2 . 1 . 1 . . . 1 . 2 . . . . . . . . . . 3 1 2 . 3 . 5 3 . Combat 146 | . . . . . 1 . . . . 4 . . . 3 . 8 2 3 . . . 5 . 13 6 4 . 3 3 2 2 13 5 1 15 5 3 14 . 1 . 6 24 . Autoassimilated 9 | . . . . . . . . . . . . . . . . . . . . . . . . . . . . . . . . . . . 4 1 1 2 . . . 1 . . Robot Hacks Applied 139 | . . . . . 4 . . . . 4 . . . 3 2 8 3 3 1 . . 5 1 13 6 4 . . . 2 1 12 2 1 11 5 3 15 . 3 . 13 14 . parse_system 12 | . . . . . 4 . . . . . . . . . . . . . . . . . . . . . . . . 2 . 1 2 . . 1 . 2 . . . . . . find_chute 2 | . . . . . . . . . . . . . . . . . . . 1 . . . . . 1 . . . . . . . . . . . . . . . . . . . drop_inventory 5 | . . . . . . . . . . . . . . . . . . . . . . . 1 . . . . . . . . . . . . 1 1 . . 2 . . . . purge_threat 19 | . . . . . . . . . . . . . . . 2 . . . . . . . . . . . . . . . . . . . . 3 . 2 . . . 9 3 . block_reporting 4 | . . . . . . . . . . . . . . . . . . . . . . . . . 1 . . . . . . . . . . . . 1 . . . . 2 . map_route 2 | . . . . . . . . . . . . . . . . . . . . . . . . . . . . . . . . . . . . . . . . 1 . 1 . . disable_scanner 3 | . . . . . . . . . . . . . . . . . . . . . . . . . . . . . . . . . . . . . . 3 . . . . . . ignore_targets 4 | . . . . . . . . . . . . . . . . . . . . . . . . . . 4 . . . . . . . . . . . . . . . . . . find_garrison 1 | . . . . . . . . . . . . . . . . . 1 . . . . . . . . . . . . . . . . . . . . . . . . . . . reboot_system 10 | . . . . . . . . . . 2 . . . . . 1 . 1 . . . 3 . 1 1 . . . . . . 1 . . . . . . . . . . . . overwrite_iff 54 | . . . . . . . . . . 1 . . . 3 . 5 1 2 . . . . . 5 2 . . . . . 1 8 . 1 9 . 2 7 . . . 3 4 . formatsys_low 1 | . . . . . . . . . . . . . . . . . 1 . . . . . . . . . . . . . . . . . . . . . . . . . . . formatsys_high 22 | . . . . . . . . . . 1 . . . . . 2 . . . . . 2 . 7 1 . . . . . . 2 . . 2 . . . . . . . 5 . Manual 1 | . . . . . . . . . . . . . . . . . . . . . . . . . . . . . . . . . . . . . . . . . . . 1 . Relay Couplers Released 130 | . . . . . . . 3 11 . 11 . . . 17 . 13 . 11 . . . 17 . 7 . . . . . . 3 13 3 . 7 . 2 4 4 . . 4 . . Ejected 7 | . . . . . . . . . . . . . . . . . . . . . . . . . . . . . . . 3 . . . . . . 4 . . . . . . Machine Destruction 113 | . . . . . . . . 11 . 11 . . . 17 . 13 . 11 . . . 17 . 7 . . . . . . . 13 . . 7 . 2 . 4 . . . . . Programmers 10 | . . . . . . . 3 . . . . . . . . . . . . . . . . . . . . . . . . . 3 . . . . . . . . 4 . . Attached 48 | . . . . . . . . 1 . 3 . . . 1 1 4 2 1 . . . 4 . 6 2 . . . . . 1 5 . . 4 . 2 2 1 . . 5 3 . Fabnet Peak Effective % 9 | . . . . . . . . . . . . . . . . . . . . . . . . . 9 9 9 9 9 9 9 9 3 3 3 3 3 3 3 4 4 4 4 4 Autooverrided 37 | . . . . . . . . . . . . . . . . . . . . . . . . . 2 . . 3 3 . 1 2 3 . . 4 . . . 1 . 3 15 . Robots Rewired 31 | . . . . . . . . . . . . . . . . 3 . . . . . . . . . . . 3 . . . 13 . . 12 . . . . . . . . . Allies Hacked 8 | . . . . . . . . . . . . . . . . . 1 . 1 . . . . . . . . . . . . . . . . 4 . 1 . . . 1 . . Hacks Repelled . | . . . . . . . . . . . . . . . . . . . . . . . . . . . . . . . . . . . . . . . . . . . . . Allies | -11 -10 -10 -9 -9 -9 -8 -8 -8 -8 -8 -7 -7 -7 -7 -7 -7 -6 -6 -5 -5 -5 -5 -5 -5 -4 -4 -4 -4 -4 -4 -4 -4 -3 -3 -3 -2 -2 -2 -2 -1 -1 -1 -1 -1 -------- Run | Scr Mat Min Mat Min Exi Min Mat Gar Sto Gar Fac Was Fac Gar Fac Gar Fac Gar Fac Was Fac Gar Fac Gar Fac Was Fac Ext Cet Arc Hub Gar Res Tes Gar Res Qua Sec Gar Acc Gar Acc Com Ac0 Total Allies 231 | . 1 . . 3 . . 1 . . 2 . 20 3 4 1 11 3 2 . 1 3 2 . 12 6 19 . 18 8 . 3 25 3 1 27 6 4 10 . 1 . 7 24 . Largest Group 20 | . 1 1 . 3 3 3 1 1 . 1 . 20 19 8 1 4 7 5 3 2 4 2 . 3 2 19 17 20 19 13 8 13 13 1 14 13 1 2 . . . 2 7 . Highest-Rated Group 974 | . 10 10 . 40 40 40 10 10 . 16 . 496 467 222 32 95 172 151 75 53 115 90 . 41 105 684 584 946 974 893 545 489 489 47 784 720 69 138 . . . 171 362 . Highest-Rated Ally 171 | . 10 10 . 16 16 16 10 10 . 16 . 35 31 31 32 32 47 47 32 31 31 49 . 41 58 50 46 152 152 146 95 58 116 47 64 64 69 69 . . . 171 84 . Total Orders 71 | . . 1 . . . . 2 3 . . . . . . . 8 1 6 2 . 5 7 . 4 . . . . 3 4 . 5 1 . 6 4 . 1 . . . . 8 . STAY 44 | . . 1 . . . . 1 3 . . . . . . . 5 . 4 1 . 3 6 . 1 . . . . 2 2 . 4 . . 4 2 . 1 . . . . 4 . ROAM 2 | . . . . . . . . . . . . . . . . . . . . . . . . 1 . . . . . . . . 1 . . . . . . . . . . . FOLLOW 20 | . . . . . . . 1 . . . . . . . . 3 . 1 1 . 1 1 . . . . . . 1 2 . 1 . . 2 2 . . . . . . 4 . GUARD 2 | . . . . . . . . . . . . . . . . . . . . . . . . 2 . . . . . . . . . . . . . . . . . . . . AID 3 | . . . . . . . . . . . . . . . . . 1 1 . . 1 . . . . . . . . . . . . . . . . . . . . . . . Ally Attacks 1183 | . . . . . . 33 . . . 4 . 12 104 32 3 20 41 11 9 30 42 18 . 25 36 . 31 196 97 33 116 24 89 3 15 44 4 27 . . . 19 65 . Total Damage 31634 | . . . . . . 288 . . . 64 . 216 1388 638 110 356 949 236 217 486 678 712 . 335 613 . 644 4935 3138 925 3843 764 3788 99 276 1732 222 930 . . . 673 2379 . Kills 146 | . . . . . . 1 . . . 1 . 1 14 4 1 2 12 5 1 2 7 1 . 3 . . 2 26 14 5 15 2 15 . 1 6 . 4 . . . . 1 . Allies Corrupted 15 | . . . . . . . . . . . . . . . . . . . 1 1 . . . . . . . . . . 1 . . . . 4 3 3 . . . . 2 . Allies Melted 1 | . . . . . . . . . . . . . . . . . . . . . . . . . . . . . . . . . . . . . . . . . . 1 . . Intel | -11 -10 -10 -9 -9 -9 -8 -8 -8 -8 -8 -7 -7 -7 -7 -7 -7 -6 -6 -5 -5 -5 -5 -5 -5 -4 -4 -4 -4 -4 -4 -4 -4 -3 -3 -3 -2 -2 -2 -2 -1 -1 -1 -1 -1 ------- Run | Scr Mat Min Mat Min Exi Min Mat Gar Sto Gar Fac Was Fac Gar Fac Gar Fac Gar Fac Was Fac Gar Fac Gar Fac Was Fac Ext Cet Arc Hub Gar Res Tes Gar Res Qua Sec Gar Acc Gar Acc Com Ac0 Robot Analysis Total 4 | . 2 . 1 . . . 1 . . . . . . . . . . . . . . . . . . . . . . . . . . . . . . . . . . . . . Derelict Logs Recovered 3 | . . 2 . 1 . . . . . . . . . . . . . . . . . . . . . . . . . . . . . . . . . . . . . . . . Drone Launches . | . . . . . . . . . . . . . . . . . . . . . . . . . . . . . . . . . . . . . . . . . . . . . Drone Recoveries . | . . . . . . . . . . . . . . . . . . . . . . . . . . . . . . . . . . . . . . . . . . . . . Exploration | -11 -10 -10 -9 -9 -9 -8 -8 -8 -8 -8 -7 -7 -7 -7 -7 -7 -6 -6 -5 -5 -5 -5 -5 -5 -4 -4 -4 -4 -4 -4 -4 -4 -3 -3 -3 -2 -2 -2 -2 -1 -1 -1 -1 -1 ------------- Run | Scr Mat Min Mat Min Exi Min Mat Gar Sto Gar Fac Was Fac Gar Fac Gar Fac Gar Fac Was Fac Gar Fac Gar Fac Was Fac Ext Cet Arc Hub Gar Res Tes Gar Res Qua Sec Gar Acc Gar Acc Com Ac0 Turns Passed 96284 | . 1219 1413 1353 1088 638 1650 4224 1692 4303 2536 2005 713 1528 2673 1124 1554 838 2720 938 242 2725 5589 418 3162 1135 1676 469 796 311 934 2715 1975 1720 2016 2569 1438 2274 3249 816 827 194 4020 15495 5310 Spaces Moved 38770 | 1 648 813 505 650 379 416 1450 620 1110 856 791 430 280 1154 435 743 396 1200 363 91 555 1824 144 1240 432 716 137 409 165 340 735 824 517 1012 1146 585 1163 1566 445 220 120 1960 6036 3148 Core . | . . . . . . . . . . . . . . . . . . . . . . . . . . . . . . . . . . . . . . . . . . . . . Treads 38290 | . 449 813 505 650 379 416 1450 620 1110 856 791 430 280 1154 435 743 396 1200 363 91 555 1824 144 1240 432 716 137 409 165 340 735 824 517 1012 1146 585 1163 1389 445 220 95 1960 6036 3070 Legs 200 | 1 199 . . . . . . . . . . . . . . . . . . . . . . . . . . . . . . . . . . . . . . . . . . . Wheels . | . . . . . . . . . . . . . . . . . . . . . . . . . . . . . . . . . . . . . . . . . . . . . Hover . | . . . . . . . . . . . . . . . . . . . . . . . . . . . . . . . . . . . . . . . . . . . . . Flight . | . . . . . . . . . . . . . . . . . . . . . . . . . . . . . . . . . . . . . . . . . . . . . Fastest Speed 120 | 120 120 160 160 160 160 160 166 160 160 240 158 161 166 165 162 162 162 162 164 160 160 160 240 162 160 160 160 160 160 160 160 160 150 153 160 145 145 160 160 160 160 160 151 151 Average Speed 175 | 120 147 160 160 160 164 239 222 214 239 240 161 161 166 165 164 170 162 184 243 185 168 217 240 205 161 160 160 160 160 160 160 160 154 157 161 151 156 160 160 160 160 160 169 151 Slowest Speed 320 | 120 160 160 160 160 240 240 246 240 320 240 240 166 166 167 243 242 243 242 244 245 240 243 240 242 162 240 160 160 160 160 160 160 160 163 165 160 160 160 160 160 160 163 243 151 Overloaded Moves . | . . . . . . . . . . . . . . . . . . . . . . . . . . . . . . . . . . . . . . . . . . . . . Propulsion Burnouts . | . . . . . . . . . . . . . . . . . . . . . . . . . . . . . . . . . . . . . . . . . . . . . Robots Hopped . | . . . . . . . . . . . . . . . . . . . . . . . . . . . . . . . . . . . . . . . . . . . . . Cave-ins Triggered . | . . . . . . . . . . . . . . . . . . . . . . . . . . . . . . . . . . . . . . . . . . . . . Teleports 3 | . . . . . . . . . . . . . . . . . . . . . . . . . . . . . . . . . . . . . . 1 . . . . 1 1 Microwarps 23 | . . . . . . . . . . . . . . . . . . . . . . . . . . . . . . . . . . . . . . 13 . . 1 . . 9 Exploration Rate (%) 59 | 2 91 98 52 98 70 82 77 78 97 75 12 97 8 74 11 61 15 79 13 72 17 91 4 79 22 95 5 64 66 83 64 79 18 90 68 21 96 79 64 14 33 66 94 97 Regions Visited 44 Branch Regions 14 Pre-discovered Areas 9 | . 2 1 1 1 1 . 1 . 1 . . . 1 . . . . . . . . . . . . . . . . . . . . . . . . . . . . . . . Known Exits Taken 15 | . . . . . . 1 1 . 1 . . . 1 . 1 . 1 . . . 1 . 1 . . . 1 . . . 1 . 1 1 . 1 . 1 . 1 . . . . Unknown Exits Taken 12 | 1 1 1 1 1 1 . . . . . . . . . . . . . . . . . . . . . . 1 1 1 . . . . . . 1 . . . . 1 1 . Scrap Searched 3 | . . 1 . 1 . 1 . . . . . . . . . . . . . . . . . . . . . . . . . . . . . . . . . . . . . . Spaces Dug 543 | . . 24 6 32 . 43 7 6 2 1 4 . 1 . 2 . 4 . 3 . 9 14 2 1 4 . 1 1 . . 15 . . 11 1 25 8 9 14 8 . 20 27 238 Terrain Destroyed 2223 | . 39 65 58 61 . 123 21 24 5 2 4 . 1 4 11 14 12 33 5 4 28 56 6 12 18 6 2 3 2 1 49 3 3 30 23 98 64 65 26 13 . 66 236 927 Melee 37 | . . . . . . . 7 . 2 . 4 . 1 . . . . . . . 4 6 . 1 . . 1 . . . 3 . . . . . . 7 . . . 1 . . Projectile 522 | . . . . . . . . . 3 2 . . . 4 11 2 12 4 5 4 15 7 6 11 18 6 1 3 2 1 46 3 3 30 21 98 64 40 2 12 . 15 20 51 AOE 1603 | . 39 65 58 61 . 123 14 24 . . . . . . . 12 . 29 . . 9 43 . . . . . . . . . . . . . . . 17 24 . . 22 198 865 Terrain Rammed . | . . . . . . . . . . . . . . . . . . . . . . . . . . . . . . . . . . . . . . . . . . . . . Walls Destroyed . | . . . . . . . . . . . . . . . . . . . . . . . . . . . . . . . . . . . . . . . . . . . . . Machines Disabled . | . . . . . . . . . . . . . . . . . . . . . . . . . . . . . . . . . . . . . . . . . . . . . Actions | -11 -10 -10 -9 -9 -9 -8 -8 -8 -8 -8 -7 -7 -7 -7 -7 -7 -6 -6 -5 -5 -5 -5 -5 -5 -4 -4 -4 -4 -4 -4 -4 -4 -3 -3 -3 -2 -2 -2 -2 -1 -1 -1 -1 -1 --------- Run | Scr Mat Min Mat Min Exi Min Mat Gar Sto Gar Fac Was Fac Gar Fac Gar Fac Gar Fac Was Fac Gar Fac Gar Fac Was Fac Ext Cet Arc Hub Gar Res Tes Gar Res Qua Sec Gar Acc Gar Acc Com Ac0 Total 63416 | . 814 880 952 673 389 1017 2299 924 2630 1200 1475 448 1342 1832 787 955 555 1611 395 131 2224 3283 188 1795 798 966 383 527 198 677 2100 1386 1408 1341 1746 951 1489 2196 520 655 123 2543 10990 3620 Wait 19573 | . 62 26 327 3 . 549 682 195 1395 205 636 6 1060 583 282 51 99 298 5 4 1551 1193 13 460 285 35 230 77 1 282 1220 317 834 216 355 165 145 501 26 368 6 320 4413 92 Move 38476 | . 647 812 504 649 378 415 1449 619 1110 855 791 429 279 1153 434 742 395 1199 363 90 555 1823 144 1239 432 715 136 408 164 339 734 823 516 1012 1145 584 1162 1401 444 220 95 1959 6035 3078 Hop . | . . . . . . . . . . . . . . . . . . . . . . . . . . . . . . . . . . . . . . . . . . . . . Pick Up 428 | . 16 3 12 . 3 2 13 11 6 7 3 1 1 9 5 13 4 12 . 2 9 36 . 9 6 6 3 2 5 1 10 18 7 5 16 12 29 26 5 3 3 13 48 33 Fast Attach 339 | . 3 . 6 . . . 14 4 20 . 5 2 . 6 12 2 7 1 4 5 4 20 4 . 5 22 1 . 7 7 9 3 10 19 8 11 9 22 1 3 . 11 57 15 Attach 224 | . 2 1 2 . . 1 1 3 1 2 2 1 . 2 1 3 5 5 1 . 11 17 . 4 4 2 2 . 1 1 5 4 4 . 5 5 9 23 6 4 4 14 31 35 Detach 149 | . 1 . 1 . . . . 3 . 1 2 . . 3 1 4 2 4 1 6 7 9 . 3 2 7 1 . . . 6 6 1 . 6 3 6 8 2 4 . 9 26 14 Swap 577 | . 6 6 13 4 3 15 23 15 9 15 8 1 . 7 8 26 6 7 4 1 8 29 4 17 14 14 5 1 . 10 9 14 3 9 22 38 19 41 8 5 1 34 66 29 Drop 686 | . 12 1 21 . 1 3 29 17 24 8 5 7 1 14 16 16 9 6 3 7 12 36 4 5 9 36 3 3 12 7 14 17 15 21 23 23 37 36 6 6 3 19 99 40 Fire 2176 | . 53 31 59 16 . 17 65 38 49 61 10 . . 40 27 34 23 68 13 16 30 84 19 41 33 123 1 15 8 30 59 48 18 54 78 95 69 85 22 42 11 139 168 284 Melee 341 | . . . . . 4 13 17 4 13 27 6 1 1 13 . 18 . 4 . . 36 24 . 3 7 6 1 . . . 33 17 . . . . 2 51 . . . 8 32 . Ram . | . . . . . . . . . . . . . . . . . . . . . . . . . . . . . . . . . . . . . . . . . . . . . Kick 6 | . 6 . . . . . . . . . . . . . . . . . . . . . . . . . . . . . . . . . . . . . . . . . . . Crush 87 | . 6 . 7 1 . 2 6 . 3 1 7 . . . 1 . 3 . . . 1 1 . . . . . 2 . . 1 . . 5 1 15 2 2 . . . 17 3 . Escape Stasis 71 | . . . . . . . . 15 . 18 . . . 2 . 2 . 4 . . . 10 . 12 . . . . . . . . . . . . . . . . . . 8 . Rewire 283 | . . . . . . . . . . . . . . . . 44 2 3 1 . . 1 . 2 1 . . 19 . . . 119 . . 87 . . . . . . . 4 . Trap . | . . . . . . . . . . . . . . . . . . . . . . . . . . . . . . . . . . . . . . . . . . . . . Miscellaneous . | . . . . . . . . . . . . . . . . . . . . . . . . . . . . . . . . . . . . . . . . . . . . . Route ------- -11/Scrapyard -10/Materials (discovered 3 exits: *Mat x2 / [*Min]) -10/Mines (discovered 2 exits: *Mat x2) -9/Materials (discovered 3 exits: *Mat x2 / [*Min]) -9/Mines (discovered 3 exits: *Mat x2 / *Exi) -9/Exiles (discovered 2 exits: [*Min x2]) -8/Mines (discovered 2 exits: *Mat x2) -8/Materials (discovered 4 exits: *Fac x2 / *Sto / Gar) -8/Garrison (discovered 3 exits: *Sto x3) -8/Storage (discovered 2 exits: *Fac / Gar) -8/Garrison (discovered 3 exits: *Fac x3) -7/Factory -7/Waste -7/Factory -7/Garrison (discovered 3 exits: *Fac x3) -7/Factory (discovered 3 exits: *Fac / [*Low] / Gar) -7/Garrison -6/Factory -6/Garrison (discovered 3 exits: *Fac x3) -5/Factory (discovered 2 exits: Upp x2) -5/Waste -5/Factory -5/Garrison (discovered 3 exits: *Fac x3) -5/Factory -5/Garrison (discovered 3 exits: *Fac x3) -4/Factory -4/Waste -4/Factory (discovered 4 exits: Upp x2 / *Ext x2) -4/Extension (discovered 3 exits: *Res x2 / *Cet) -4/Cetus (discovered 2 exits: *Res / [*Arc]) -4/Archives (discovered 3 exits: *Res / *Hub x2) -4/Hub_04(d) (discovered 4 exits: *Res x3 / Gar) -4/Garrison -3/Research -3/Testing (discovered 2 exits: *Res / Gar) -3/Garrison (discovered 2 exits: *Res x2) -2/Research (discovered 2 exits: *Qua x2) -2/Quarantine (discovered 2 exits: *Acc / *Sec) -2/Section 7 -2/Garrison (discovered 2 exits: *Acc x2) -1/Access -1/Garrison -1/Access -1/Command (discovered 2 exits: [*Sur] / *Ac0) -1/Access_0 0b11 Command History --------- Turn | Location | Event 1 | -11/Scrapyard | Discovered new exit (range 0) 1 | -11/Scrapyard | Entered Materials 227 | -10/Materials | Discovered new exit (range 7) 327 | -10/Materials | Build established: Mutant 573 | -10/Materials | Discovered new exit (range 15) 1014 | -10/Materials | Discovered new exit (range 16) 1220 | -10/Materials | Entered Mines 1220 | -10/Mines | Accompanied by 1 ally 1480 | -10/Mines | Learned location of Storage (-8) 1486 | -10/Mines | Discovered new exit (range 8) 1686 | -10/Mines | Learned location of 1 exit from Materials 1907 | -10/Mines | Assembled infested the area 1912 | -10/Mines | Assisted by a Guerilla fighting off Assembled 2030 | -10/Mines | Discovered new exit (range 14) 2041 | -10/Mines | Destroyed 8 combat bots 2633 | -10/Mines | Entered Materials 2633 | -9/Materials | Evolved 2 slots: Propulsion x1, Utility x1 2634 | -9/Materials | Identified exit to Materials 3329 | -9/Materials | Build established: Scavenger-Mutant 3583 | -9/Materials | Discovered exit to Materials (range 4) 3726 | -9/Materials | Build established: Mutant 3767 | -9/Materials | Discovered new exit (range 7) 3928 | -9/Materials | Repaired Lgt. Treads 3986 | -9/Materials | Entered Mines 4007 | -9/Mines | Met a Derelict bent on vengeance 4119 | -9/Mines | Destroyed 9 combat bots 4618 | -9/Mines | Discovered exit to Materials (range 8) 4639 | -9/Mines | Assisted by bots powering up and referring to "LRC-V3" 4845 | -9/Mines | Learned Materials trap positions 4853 | -9/Mines | Discovered exit to Materials (range 5) 5066 | -9/Mines | Deemed a non-threat by the Exiles lab entrance 5067 | -9/Mines | Discovered new exit (range 5) 5074 | -9/Mines | Entered Exiles 5074 | -9/Exiles | Accompanied by 3 allies 5095 | -9/Exiles | Discovered new exit (range 15) 5118 | -9/Exiles | Met 8R-AWN 5145 | -9/Exiles | Met EX-HEX 5211 | -9/Exiles | Met EX-DEC 5402 | -9/Exiles | Build established: Scavenger-Mutant 5432 | -9/Exiles | Learned location of Zion (-6) 5461 | -9/Exiles | Met EX-BIN 5485 | -9/Exiles | Aligned with FarCom system 5487 | -9/Exiles | Given EX-Vault access code 5527 | -9/Exiles | Opened EX-Vault 5535 | -9/Exiles | Found Gui. Plasma Cannon 5539 | -9/Exiles | Found Firepult 5542 | -9/Exiles | Found AWS/Thermal 5573 | -9/Exiles | Warned to stay clear of 0b10 Research branches 5691 | -9/Exiles | Discovered new exit (range 10) 5712 | -9/Exiles | Stole three prototypes: AWS/Thermal, Gui. Plasma Cannon, Firepult 5712 | -9/Exiles | Entered Mines 5712 | -8/Mines | Accompanied by 3 allies 5825 | -8/Mines | Discovered exit to Materials (range 3) 5954 | -8/Mines | Build established: Mutant 6772 | -8/Mines | Discovered exit to Materials (range 7) 7362 | -8/Mines | Entered Materials 7362 | -8/Materials | Evolved 2 slots: Utility x1, Weapon x1 7363 | -8/Materials | Loaded intel: 22 trap records 7654 | -8/Materials | Build established: Skirmisher 8102 | -8/Materials | Build established: Scavenger-Skirmisher 8808 | -8/Materials | Repaired Imp. Heat Sink 9129 | -8/Materials | Discovered new exit (range 10) 9443 | -8/Materials | Discovered new exit (range 11) 10607 | -8/Materials | Discovered new exit (range 8) 10715 | -8/Materials | Build established: Skirmisher 10753 | -8/Materials | Identified exit to Garrison 11173 | -8/Materials | Repaired Hrd. Light Armor Plating 11213 | -8/Materials | Repaired Imp. Heat Sink 11253 | -8/Materials | Build established: Mutant 11586 | -8/Materials | Entered Garrison 11586 | -8/Garrison | Accompanied by 1 ally 11655 | -8/Garrison | Triggered checkpoint 11799 | -8/Garrison | Discovered new exit (range 8) 11819 | -8/Garrison | Installed Relay Interface Framework 11873 | -8/Garrison | Build established: Skirmisher 11928 | -8/Garrison | Triggered checkpoint 11975 | -8/Garrison | Garrison Relay disabled 12256 | -8/Garrison | Triggered checkpoint 12320 | -8/Garrison | Discovered new exit (range 9) 12372 | -8/Garrison | Triggered checkpoint 12394 | -8/Garrison | Garrison Relay disabled 12810 | -8/Garrison | Discovered new exit (range 10) 12838 | -8/Garrison | Triggered checkpoint 12901 | -8/Garrison | Garrison Relay disabled 13247 | -8/Garrison | Build established: Scavenger-Skirmisher 13278 | -8/Garrison | Entered Storage 14685 | -8/Storage | Garrison activated, responded to threat 15494 | -8/Storage | Discovered new exit (range 16) 16808 | -8/Storage | Found Prototype Launcher 16808 | -8/Storage | Identified Gui. Missile Launcher 17097 | -8/Storage | Build established: Scavenger-Mutant 17476 | -8/Storage | Repaired Gauss Rifle 17581 | -8/Storage | Identified exit to Garrison 17581 | -8/Storage | Entered Garrison 17593 | -8/Garrison | Expanded RIF knowledge: Signal Jamming 17855 | -8/Garrison | Triggered checkpoint 18184 | -8/Garrison | Discovered new exit (range 8) 18246 | -8/Garrison | Triggered checkpoint 18297 | -8/Garrison | Discovered new exit (range 10) 18610 | -8/Garrison | Triggered checkpoint 18703 | -8/Garrison | Garrison Relay disabled 18932 | -8/Garrison | Triggered checkpoint 19072 | -8/Garrison | Garrison Relay disabled 19442 | -8/Garrison | Discovered new exit (range 13) 19936 | -8/Garrison | Triggered checkpoint 19992 | -8/Garrison | Garrison Relay disabled 20117 | -8/Garrison | Entered Factory 20117 | -7/Factory | Evolved 2 slots: Propulsion x1, Utility x1 20119 | -7/Factory | FarCom data flow suspended 21039 | -7/Factory | Build established: Scavenger-Gunner 21060 | -7/Factory | Cargo convoy interrupted 21670 | -7/Factory | Build established: Gunner 22122 | -7/Factory | Sucked down chute 22122 | -7/Factory | Entered Waste 22123 | -7/Waste | Joined by Warlord forces that had cleared the area 22160 | -7/Waste | A Compactor rumbled back to life 22160 | -7/Waste | Spotted C-40 Crusher 22163 | -7/Waste | Allies destroyed C-40 Crusher 22449 | -7/Waste | Build established: Mutant 22597 | -7/Waste | Discovered new exit (range 12) 22715 | -7/Waste | Found Damper Plating 22835 | -7/Waste | Entered Factory 22835 | -7/Factory | Accompanied by 19 allies 24259 | -7/Factory | Identified exit to Garrison 24363 | -7/Factory | Entered Garrison 24363 | -7/Garrison | Accompanied by 8 allies 24777 | -7/Garrison | Build established: Scavenger-Gunner 24975 | -7/Garrison | Discovered new exit (range 10) 25142 | -7/Garrison | Triggered checkpoint 25192 | -7/Garrison | Garrison Relay disabled 25252 | -7/Garrison | Discovered new exit (range 12) 25379 | -7/Garrison | Triggered checkpoint 25470 | -7/Garrison | Triggered checkpoint 25496 | -7/Garrison | Garrison Relay disabled 25609 | -7/Garrison | Discovered new exit (range 9) 25631 | -7/Garrison | Expanded RIF knowledge: Command Fork 25788 | -7/Garrison | Build established: Bothacker-Mutant 25796 | -7/Garrison | Triggered checkpoint 25836 | -7/Garrison | Garrison Relay disabled 26048 | -7/Garrison | Triggered checkpoint 26537 | -7/Garrison | Garrison Relay disabled 27036 | -7/Garrison | Entered Factory 27290 | -7/Factory | Build established: Bothacker-Gunner 27425 | -7/Factory | Discovered new exit (range 4) 27547 | -7/Factory | Discovered new exit (range 8) 27781 | -7/Factory | Identified exit to Garrison 28134 | -7/Factory | Garrison activated, responded to threat 28160 | -7/Factory | Entered Garrison 28169 | -7/Garrison | Expanded RIF knowledge: Threat Obfuscation 28193 | -7/Garrison | Triggered checkpoint 28486 | -7/Garrison | Triggered checkpoint 28527 | -7/Garrison | Garrison Relay disabled 28616 | -7/Garrison | Triggered checkpoint 28729 | -7/Garrison | Discovered new exit (range 9) 28798 | -7/Garrison | Triggered checkpoint 28877 | -7/Garrison | Garrison Relay disabled 29060 | -7/Garrison | Triggered checkpoint 29326 | -7/Garrison | Triggered checkpoint 29380 | -7/Garrison | Garrison Relay disabled 29545 | -7/Garrison | Build established: Bothacker-Mutant 29714 | -7/Garrison | Entered Factory 29714 | -6/Factory | Accompanied by 4 allies 29714 | -6/Factory | Evolved 2 slots: Utility x2 30218 | -6/Factory | Spotted B-75 Beast 30373 | -6/Factory | Repaired Cld. Particle Cannon 30509 | -6/Factory | Identified exit to Garrison 30552 | -6/Factory | Entered Garrison 30552 | -6/Garrison | Accompanied by 3 allies 30718 | -6/Garrison | Triggered checkpoint 30795 | -6/Garrison | Garrison Relay disabled 30891 | -6/Garrison | Triggered checkpoint 31076 | -6/Garrison | Discovered new exit (range 13) 31144 | -6/Garrison | Triggered checkpoint 31252 | -6/Garrison | Garrison Relay disabled 31332 | -6/Garrison | Triggered checkpoint 31524 | -6/Garrison | Discovered new exit (range 19) 31634 | -6/Garrison | Build established: Bothacker-Gunner 31942 | -6/Garrison | Discovered new exit (range 8) 31961 | -6/Garrison | Expanded RIF knowledge: Watcher Feeds 32298 | -6/Garrison | Garrison Relay disabled 32337 | -6/Garrison | Build established: Botlord-Mutant 33272 | -6/Garrison | Entered Factory 33272 | -5/Factory | Accompanied by 3 allies 33272 | -5/Factory | Evolved 2 slots: Power x1, Propulsion x1 33613 | -5/Factory | Identified exit to Upper Caves 33848 | -5/Factory | Found Prototype Launcher 33848 | -5/Factory | Identified Scatter Rocket Array 34210 | -5/Factory | Sucked down chute 34210 | -5/Factory | Entered Waste 34211 | -5/Waste | Met a frightened Derelict 34225 | -5/Waste | EMP discharged 34230 | -5/Waste | 1 allies followed down the chute 34264 | -5/Waste | Spotted C-40 Crusher 34270 | -5/Waste | Destroyed C-40 Crusher 34275 | -5/Waste | Spotted C-40 Crusher 34287 | -5/Waste | Destroyed C-40 Crusher 34298 | -5/Waste | Found Damper Plating 34303 | -5/Waste | Spotted C-40 Crusher 34308 | -5/Waste | Allies destroyed C-40 Crusher 34325 | -5/Waste | EMP discharged 34334 | -5/Waste | Spotted C-40 Crusher 34349 | -5/Waste | Destroyed C-40 Crusher 34353 | -5/Waste | Spotted C-40 Crusher 34374 | -5/Waste | Allies destroyed C-40 Crusher 34425 | -5/Waste | EMP discharged 34436 | -5/Waste | Discovered new exit (range 10) 34451 | -5/Waste | Build established: Botlord-Gunner 34452 | -5/Waste | Entered Factory 34452 | -5/Factory | Accompanied by 1 ally 34682 | -5/Factory | Identified exit to DSF 34757 | -5/Factory | Allied Derelicts emerged from ambush trap array 35289 | -5/Factory | Build established: Botlord-Mutant 35494 | -5/Factory | Garrison activated, responded to threat 37177 | -5/Factory | Identified exit to Garrison 37177 | -5/Factory | Entered Garrison 37344 | -5/Garrison | Triggered checkpoint 37511 | -5/Garrison | Garrison Relay disabled 37679 | -5/Garrison | Triggered checkpoint 37795 | -5/Garrison | Spotted B-75 Beast 37847 | -5/Garrison | Destroyed B-75 Beast 37953 | -5/Garrison | Triggered checkpoint 38017 | -5/Garrison | Discovered new exit (range 14) 39168 | -5/Garrison | Triggered checkpoint 39224 | -5/Garrison | Lost 8 parts (1p5n2u) 39291 | -5/Garrison | Garrison Relay disabled 39398 | -5/Garrison | Discovered new exit (range 14) 39451 | -5/Garrison | Expanded RIF knowledge: Robot Detection 39788 | -5/Garrison | Triggered checkpoint 40053 | -5/Garrison | Build established: Botlord-Tank 40506 | -5/Garrison | Triggered checkpoint 40682 | -5/Garrison | Triggered checkpoint 40978 | -5/Garrison | Garrison Relay disabled 41278 | -5/Garrison | Triggered checkpoint 41331 | -5/Garrison | Garrison Relay disabled 41633 | -5/Garrison | Build established: Botlord-Mutant 41665 | -5/Garrison | Discovered new exit (range 15) 42439 | -5/Garrison | Build established: Botlord-Tank 42766 | -5/Garrison | Entered Factory 43184 | -5/Factory | Identified exit to Garrison 43184 | -5/Factory | Entered Garrison 43362 | -5/Garrison | Triggered checkpoint 43611 | -5/Garrison | Garrison Relay disabled 43814 | -5/Garrison | Triggered checkpoint 43822 | -5/Garrison | Triggered checkpoint 44659 | -5/Garrison | Discovered new exit (range 12) 44760 | -5/Garrison | Triggered checkpoint 44926 | -5/Garrison | Discovered new exit (range 13) 44970 | -5/Garrison | Expanded RIF knowledge: Coupler Efficiency 45185 | -5/Garrison | Discovered new exit (range 12) 45544 | -5/Garrison | Triggered checkpoint 45575 | -5/Garrison | Garrison Relay disabled 45612 | -5/Garrison | Build established: Botlord-Mutant 45876 | -5/Garrison | Triggered checkpoint 46346 | -5/Garrison | Entered Factory 46346 | -4/Factory | Accompanied by 2 allies 46346 | -4/Factory | Evolved 2 slots: Propulsion x1, Utility x1 46570 | -4/Factory | Spotted B-86 Titan 46974 | -4/Factory | Discovered new exit (range 11) 47481 | -4/Factory | Sucked down chute 47481 | -4/Factory | Entered Waste 47497 | -4/Waste | Spotted C-40 Crusher 47537 | -4/Waste | Spotted C-40 Crusher 47539 | -4/Waste | Spotted C-40 Crusher 47549 | -4/Waste | Spotted C-40 Crusher 47556 | -4/Waste | Spotted C-40 Crusher 47567 | -4/Waste | Spotted C-40 Crusher 47806 | -4/Waste | Destroyed C-40 Crusher 47835 | -4/Waste | Found Unknown Protection 47835 | -4/Waste | Identified Damper Plating 48003 | -4/Waste | Destroyed C-40 Crusher 48079 | -4/Waste | Destroyed C-40 Crusher 48127 | -4/Waste | Destroyed C-40 Crusher 48149 | -4/Waste | Found Damper Plating 48230 | -4/Waste | Destroyed C-40 Crusher 48336 | -4/Waste | Destroyed C-40 Crusher 48601 | -4/Waste | Warlord forces began an assault 48656 | -4/Waste | Build established: Botlord-Tank 48776 | -4/Waste | Discovered new exit (range 12) 49157 | -4/Waste | Entered Factory 49157 | -4/Factory | Accompanied by 17 allies 49194 | -4/Factory | Identified exit to Upper Caves 49194 | -4/Factory | Identified exit to Extension 49303 | -4/Factory | Build established: Botlord-Mutant 49626 | -4/Factory | Entered Extension 49626 | -4/Extension | Accompanied by 16 allies 49750 | -4/Extension | Spotted B-86 Titan 49755 | -4/Extension | Allies destroyed B-86 Titan 49762 | -4/Extension | Spotted B-86 Titan 49766 | -4/Extension | Allies destroyed B-86 Titan 49837 | -4/Extension | Rescued a captive Derelict 49911 | -4/Extension | Rescued a captive Derelict 49917 | -4/Extension | Energy Cycler disabled 49917 | -4/Extension | Rescued a captive Derelict 49917 | -4/Extension | Rescued a captive Derelict 49917 | -4/Extension | Rescued a captive Derelict 49917 | -4/Extension | Rescued a captive Derelict 49918 | -4/Extension | Rescued a captive Derelict 49918 | -4/Extension | Rescued a captive Derelict 49918 | -4/Extension | Rescued a captive Derelict 49919 | -4/Extension | Rescued a captive Derelict 49919 | -4/Extension | Rescued a captive Derelict 49920 | -4/Extension | Rescued a captive Derelict 49923 | -4/Extension | Rescued a captive Derelict 49943 | -4/Extension | Rescued A7 50080 | -4/Extension | Discovered new exit (range 14) 50199 | -4/Extension | Build established: Botlord-Tank 50381 | -4/Extension | Discovered new exit (range 10) 50383 | -4/Extension | Discovered new exit (range 6) 50422 | -4/Extension | Entered Cetus 50422 | -4/Cetus | Accompanied by 19 allies (A7) 50427 | -4/Cetus | Acquired a Cetus Manufacturing Module code from A7 50437 | -4/Cetus | Spotted Cetus Guard 50437 | -4/Cetus | Spotted Cetus Guard 50438 | -4/Cetus | Spotted Cetus Guard 50438 | -4/Cetus | Spotted Cetus Guard 50445 | -4/Cetus | Allies destroyed Cetus Guard 50449 | -4/Cetus | Allies destroyed Cetus Guard 50450 | -4/Cetus | Destroyed Cetus Guard 50450 | -4/Cetus | Allies destroyed Cetus Guard 50572 | -4/Cetus | Started Cetus Manufacturing Module 50585 | -4/Cetus | Escorted A7 to Cetus Mainframe 50597 | -4/Cetus | Manufactured an Enhanced Grunt 50608 | -4/Cetus | Discovered new exit (range 15) 50622 | -4/Cetus | Manufactured an Enhanced Grunt 50636 | -4/Cetus | Spotted Cetus Guard 50636 | -4/Cetus | Spotted Cetus Guard 50638 | -4/Cetus | Spotted Cetus Guard 50640 | -4/Cetus | Spotted Cetus Guard 50643 | -4/Cetus | Destroyed Cetus Guard 50647 | -4/Cetus | Manufactured an Enhanced Grunt 50647 | -4/Cetus | Allies destroyed Cetus Guard 50650 | -4/Cetus | Allies destroyed Cetus Guard 50656 | -4/Cetus | Allies destroyed Cetus Guard 50657 | -4/Cetus | Discovered new exit (range 15) 50667 | -4/Cetus | Met Revision 17 50672 | -4/Cetus | Manufactured an Enhanced Grunt 50697 | -4/Cetus | Manufactured an Enhanced Grunt 50733 | -4/Cetus | Entered Archives 50733 | -4/Archives | Accompanied by 13 allies (A7) 50738 | -4/Archives | Received a hacking code to weaken MAIN.C 50843 | -4/Archives | Discovered new exit (range 16) 50879 | -4/Archives | Discovered new exit (range 13) 51023 | -4/Archives | Build established: Botlord-Mutant 51170 | -4/Archives | Discovered new exit (range 15) 51667 | -4/Archives | Entered Hub_04(d) 51667 | -4/Hub_04(d) | Accompanied by 5 allies 51667 | -4/Hub_04(d) | Discovered new exit (range 10) 51791 | -4/Hub_04(d) | Discovered new exit (range 25) 52036 | -4/Hub_04(d) | Discovered new exit (range 22) 52057 | -4/Hub_04(d) | Network Hub disabled 52065 | -4/Hub_04(d) | Spotted Lightning 52386 | -4/Hub_04(d) | Build established: Bothacker-Tank 53517 | -4/Hub_04(d) | Build established: Bothacker-Mutant 53819 | -4/Hub_04(d) | Spotted Lightning 53838 | -4/Hub_04(d) | Spotted Lightning 53858 | -4/Hub_04(d) | Destroyed Lightning 53869 | -4/Hub_04(d) | Destroyed Lightning 53888 | -4/Hub_04(d) | Found Prototype Device 53888 | -4/Hub_04(d) | Identified Exp. Phase Shifter 53915 | -4/Hub_04(d) | Found Prototype Device 53915 | -4/Hub_04(d) | Identified EM Dispersion Field 53972 | -4/Hub_04(d) | Network Hub disabled 53994 | -4/Hub_04(d) | Destroyed Lightning 54003 | -4/Hub_04(d) | Found Prototype Processor 54258 | -4/Hub_04(d) | Identified exit to Research 54308 | -4/Hub_04(d) | Identified Exp. Targeting Computer 54374 | -4/Hub_04(d) | Identified exit to Garrison 54382 | -4/Hub_04(d) | Entered Garrison 54390 | -4/Garrison | Expanded RIF knowledge: Autoassimilate 54444 | -4/Garrison | Triggered checkpoint 54683 | -4/Garrison | Garrison Relay disabled 54794 | -4/Garrison | Triggered checkpoint 54846 | -4/Garrison | Spotted B-86 Titan 54857 | -4/Garrison | Triggered checkpoint 54902 | -4/Garrison | Destroyed B-86 Titan 55068 | -4/Garrison | Discovered exit to Research (range 10) 55102 | -4/Garrison | Triggered checkpoint 55172 | -4/Garrison | Garrison Relay disabled 55285 | -4/Garrison | Build established: Botlord-Mutant 55682 | -4/Garrison | Triggered checkpoint 55987 | -4/Garrison | Garrison Relay disabled 56357 | -4/Garrison | Entered Research 56357 | -3/Research | Accompanied by 13 allies 56357 | -3/Research | Evolved 2 slots: Utility x2 56557 | -3/Research | Revision forces began assault on 0b10 56577 | -3/Research | Discovered new exit (range 18) 56582 | -3/Research | Identified exit to Testing 56617 | -3/Research | Met up with Revision 17++ 56650 | -3/Research | Found Antimissile System 56925 | -3/Research | Build established: Botlord-Tank 57057 | -3/Research | Research terminal network offline 57112 | -3/Research | Spotted Striker 57112 | -3/Research | Spotted Striker 57121 | -3/Research | Destroyed Striker 57623 | -3/Research | Spotted Striker 57626 | -3/Research | Destroyed Striker 57776 | -3/Research | Spotted Striker 57785 | -3/Research | Destroyed Striker 57804 | -3/Research | Found Prototype Processor 57804 | -3/Research | Identified Exp. Core Analyzer 58029 | -3/Research | Spotted Striker 58033 | -3/Research | Spotted Striker 58041 | -3/Research | Destroyed Striker 58046 | -3/Research | Destroyed Revision 17++ 58061 | -3/Research | Destroyed Striker 58076 | -3/Research | Build established: Botlord-Mutant 58077 | -3/Research | Entered Testing 58208 | -3/Testing | Repaired Centrium Medium Armor Plating? 58418 | -3/Testing | Found Prototype Energy Cannon 58418 | -3/Testing | Identified Null Cannon 58449 | -3/Testing | Discovered new exit (range 15) 59052 | -3/Testing | Spotted PH-K0RY7RRUKC 59086 | -3/Testing | Found Prototype Energy Gun 59086 | -3/Testing | Identified Hyp. EM Gauss Rifle 59836 | -3/Testing | Repaired Imp. KE Penetrator 60093 | -3/Testing | Identified exit to Garrison 60093 | -3/Testing | Entered Garrison 60138 | -3/Garrison | Spotted B-86 Titan 60168 | -3/Garrison | Triggered checkpoint 60551 | -3/Garrison | Build established: Botlord-Tank 60610 | -3/Garrison | Garrison Relay disabled 60755 | -3/Garrison | Destroyed B-86 Titan 60914 | -3/Garrison | Triggered checkpoint 61164 | -3/Garrison | Triggered checkpoint 61168 | -3/Garrison | Triggered checkpoint 61370 | -3/Garrison | Discovered new exit (range 14) 61401 | -3/Garrison | Expanded RIF knowledge: Alert ID Control 61924 | -3/Garrison | Build established: Botlord-Mutant 62042 | -3/Garrison | Discovered new exit (range 10) 62184 | -3/Garrison | Triggered checkpoint 62662 | -3/Garrison | Entered Research 62662 | -2/Research | Accompanied by 13 allies 62662 | -2/Research | Evolved 2 slots: Utility x1, Weapon x1 62986 | -2/Research | P-80 Master assimilated allied Warden 8c 63391 | -2/Research | Identified exit to Quarantine 63752 | -2/Research | Build established: Botlord-Tank 64000 | -2/Research | Cargo convoy interrupted 64005 | -2/Research | Found Prototype Reactor 64005 | -2/Research | Identified Vortex Chain Reactor 64013 | -2/Research | Found Prototype Launcher 64013 | -2/Research | Identified Ragnarok Missile Launcher 64024 | -2/Research | Found Prototype Processor 64024 | -2/Research | Identified Exp. Armor Integrity Analyzer 64044 | -2/Research | Found Vortex Chain Reactor 64054 | -2/Research | Found Exp. Armor Integrity Analyzer 64057 | -2/Research | Found Prototype Device 64057 | -2/Research | Identified Exp. Shock Absorption System 64100 | -2/Research | Entered Quarantine 64303 | -2/Quarantine | Found Tesla Bomb Launcher 64447 | -2/Quarantine | Found Alien Artifact 64458 | -2/Quarantine | Identified Subatomic Replicator 64473 | -2/Quarantine | Found Alien Artifact 64792 | -2/Quarantine | Cryocooling Duct disabled 64807 | -2/Quarantine | Ambient heat levels rising (+20) 64807 | -2/Quarantine | Non-combat units ordered to evacuate 64928 | -2/Quarantine | Identified Core Reset Matrix 65148 | -2/Quarantine | Build established: Botlord-Gunner 65154 | -2/Quarantine | Found Prototype Processor 65173 | -2/Quarantine | Identified Exp. Target Analyzer 65241 | -2/Quarantine | Discovered new exit (range 15) 65269 | -2/Quarantine | Identified exit to Access 65497 | -2/Quarantine | Found Alien Artifact 65501 | -2/Quarantine | Found Alien Artifact 65504 | -2/Quarantine | Found Alien Artifact 65506 | -2/Quarantine | Found Alien Artifact 65575 | -2/Quarantine | Identified Hpw. Transdimensional Reconstructor (x2) 65575 | -2/Quarantine | Identified Transdimensional Reconstructor (x2) 66027 | -2/Quarantine | Found Alien Impact Weapon 66195 | -2/Quarantine | Spotted Fortress 66198 | -2/Quarantine | Identified Core Stripper 66209 | -2/Quarantine | Destroyed Fortress 66235 | -2/Quarantine | Found Prototype Device 66235 | -2/Quarantine | Identified Exp. Force Field 66239 | -2/Quarantine | Found Prototype Device 66239 | -2/Quarantine | Identified Thermal Barrier 66361 | -2/Quarantine | Discovered new exit (range 6) 66374 | -2/Quarantine | Entered Section 7 66452 | -2/Section 7 | Build established: Botlord-Mutant 66942 | -2/Section 7 | System corruption reached 10% 66971 | -2/Section 7 | Spotted S7 Guard 66998 | -2/Section 7 | Allies destroyed S7 Guard 67036 | -2/Section 7 | Found Alien Artifact 67089 | -2/Section 7 | Found Alien Artifact 67189 | -2/Section 7 | Spotted B-90 Cyclops 67218 | -2/Section 7 | Destroyed B-90 Cyclops 67574 | -2/Section 7 | Identified Core Regenerator 67895 | -2/Section 7 | Identified Integrated Reactor 68019 | -2/Section 7 | Used Subatomic Replicator to create Alien Artifact 68022 | -2/Section 7 | Identified Supercharged Integrated Reactor 68022 | -2/Section 7 | Installed Supercharged Integrated Reactor, increased core energy generation (+15) 68064 | -2/Section 7 | Found Alien Artifact 68171 | -2/Section 7 | Found Alien Artifact 68238 | -2/Section 7 | Spotted S7 Guard 68257 | -2/Section 7 | Destroyed S7 Guard 68321 | -2/Section 7 | Found Alien Artifact 68321 | -2/Section 7 | Identified Integrated Thermoelectric Network 68321 | -2/Section 7 | Installed Integrated Thermoelectric Network, gained heat-energy exchange potential 68325 | -2/Section 7 | Found Hvy. Regenerative Plating 68495 | -2/Section 7 | Identified Microwarp Drive 68503 | -2/Section 7 | Spotted Executioner 68504 | -2/Section 7 | Spotted Executioner 68520 | -2/Section 7 | Found Transdimensional Reconstructor 68523 | -2/Section 7 | Warped through subspace 68523 | -2/Section 7 | Spotted Striker 68523 | -2/Section 7 | Spotted Striker 68555 | -2/Section 7 | Spotted B-99 Colossus 68611 | -2/Section 7 | Found Alien Artifact 68611 | -2/Section 7 | Identified Integrity Redistributor 68611 | -2/Section 7 | Used Integrity Redistributor, redistributed integrity from core (-252) 68612 | -2/Section 7 | Core integrity fell below 50% 68629 | -2/Section 7 | Identified Integrated Mediator 68629 | -2/Section 7 | Installed Integrated Mediator, increased core attachment efficiency. 68632 | -2/Section 7 | Found Integrity Redistributor 68688 | -2/Section 7 | Found Alien Artifact 68688 | -2/Section 7 | Identified LRC Armor 68688 | -2/Section 7 | Installed LRC Armor, increased core integrity (+250) 68691 | -2/Section 7 | Found Alien Artifact 68691 | -2/Section 7 | Identified LRC Insulator 68691 | -2/Section 7 | Installed LRC Insulator, gained EM resistance (25) 68774 | -2/Section 7 | Found Integrated Reactor 68774 | -2/Section 7 | Installed Integrated Reactor, increased core energy generation (+10) 69122 | -2/Section 7 | Destroyed B-99 Colossus 69131 | -2/Section 7 | Found Prototype Ballistic Gun 69149 | -2/Section 7 | Found Prototype Ballistic Gun 69616 | -2/Section 7 | Identified exit to Garrison 69623 | -2/Section 7 | Entered Garrison 69631 | -2/Garrison | Expanded RIF knowledge: Coupler Efficiency 69702 | -2/Garrison | Triggered checkpoint 69885 | -2/Garrison | Triggered checkpoint 69974 | -2/Garrison | Discovered exit to Access (range 14) 70016 | -2/Garrison | Identified Multirail (x2) 70024 | -2/Garrison | Triggered checkpoint 70062 | -2/Garrison | Garrison Relay disabled 70236 | -2/Garrison | Discovered exit to Access (range 8) 70439 | -2/Garrison | Entered Access 70439 | -1/Access | Evolved 2 slots: Utility x2 70580 | -1/Access | Found Vortex Chain Reactor 70585 | -1/Access | Found Vortex Chain Reactor 70728 | -1/Access | First assault squad dispatched 70822 | -1/Access | Destroyed 12 combat bots 71266 | -1/Access | Identified exit to Garrison 71266 | -1/Access | Entered Garrison 71355 | -1/Garrison | Spotted B-99 Colossus 71423 | -1/Garrison | Discovered new exit (range 14) 71453 | -1/Garrison | Expanded RIF knowledge: Patrol Navigation 71460 | -1/Garrison | Entered Access 71586 | -1/Access | Destroyed 8 combat bots 71866 | -1/Access | Found Fusion Bomb Launcher 71882 | -1/Access | Spotted B-99 Colossus 71920 | -1/Access | Destroyed B-99 Colossus 71928 | -1/Access | Found Multirail 71943 | -1/Access | Found Multirail 72236 | -1/Access | First assault squad dispatched 72320 | -1/Access | Garrison activated, responded to threat 73141 | -1/Access | Build established: Botlord-Gunner 73271 | -1/Access | Garrison activated, responded to threat 73307 | -1/Access | Destroyed 7 combat bots 74062 | -1/Access | Spotted B-99 Colossus 74086 | -1/Access | Garrison activated, responded to threat 74263 | -1/Access | Destroyed B-99 Colossus 74269 | -1/Access | Garrison activated, responded to threat 74274 | -1/Access | Found Multirail 74276 | -1/Access | Found Multirail 74434 | -1/Access | Build established: Botlord-Mutant 75468 | -1/Access | Discovered new exit (range 7) 75480 | -1/Access | Entered Command 76001 | -1/Command | Build established: Botlord-Gunner 78450 | -1/Command | Build established: Botlord-Mutant 79950 | -1/Command | Spotted Combat Programmer 79950 | -1/Command | Spotted Combat Programmer 79955 | -1/Command | Destroyed M Guard 79956 | -1/Command | Destroyed M Guard 79980 | -1/Command | Destroyed Combat Programmer 79986 | -1/Command | Destroyed Combat Programmer 79986 | -1/Command | All MAIN.C guards destroyed 79996 | -1/Command | Found Prototype Reactor 80009 | -1/Command | Found Prototype Device 80010 | -1/Command | Identified AEGIS Remote Shield 80031 | -1/Command | Found Prototype Special Weapon 80031 | -1/Command | Identified Exp. Remote Datajack 80035 | -1/Command | Found Exp. Remote Datajack 80043 | -1/Command | Found Exp. Focal Shield 80065 | -1/Command | Identified Zero-point Reactor 80086 | -1/Command | Found Zero-point Reactor 80772 | -1/Command | Build established: Botlord-Gunner 81226 | -1/Command | Build established: Tank 81857 | -1/Command | Met MAIN.C 81859 | -1/Command | Hacked MAIN.C using A7's code 81885 | -1/Command | 0b10 Conduit disabled 81885 | -1/Command | Destroyed MAIN.C Shell 81888 | -1/Command | MAIN.C activated Command garrisons 81918 | -1/Command | Destroyed MAIN.C 81934 | -1/Command | Found Prototype Protection 81934 | -1/Command | Identified Exp. Powered Armor 81984 | -1/Command | Spotted B-99 Colossus 81995 | -1/Command | Destroyed B-99 Colossus 82050 | -1/Command | Spotted B-99 Colossus 82063 | -1/Command | P-80 Master assimilated allied H-88 Terminator 82085 | -1/Command | Destroyed B-99 Colossus 82102 | -1/Command | Found Multirail 82121 | -1/Command | Destroyed 12 combat bots 82144 | -1/Command | Found Multirail 82150 | -1/Command | Found Multirail 82182 | -1/Command | Found Multirail 82488 | -1/Command | Build established: Gunner 83487 | -1/Command | Discovered new exit (range 9) 84101 | -1/Command | Found Prototype Energy Cannon 84101 | -1/Command | Identified Imp. Potential Cannon 84681 | -1/Command | Found Exp. Targeting Computer 84687 | -1/Command | Found Exp. Targeting Computer 85484 | -1/Command | Phase Generator disabled 85489 | -1/Command | Found Quantum Capacitor 87621 | -1/Command | Build established: Mutant 88193 | -1/Command | Found Multirail 88809 | -1/Command | Found Zero-point Reactor 88812 | -1/Command | Found Zero-point Reactor 88816 | -1/Command | Found Prototype Device 88816 | -1/Command | Identified Femtoactuators 88827 | -1/Command | Found EM Dispersion Field 88831 | -1/Command | Found Prototype Processor 88831 | -1/Command | Identified Exp. Melee Analysis Suite 89102 | -1/Command | Build established: Scavenger-Gunner 89864 | -1/Command | Build established: Scavenger-Mutant 90481 | -1/Command | Build established: Scavenger-Gunner 90966 | -1/Command | Warped through subspace to slip node 90966 | -1/Command | Discovered new exit (range 4) 90975 | -1/Command | Entered Access_0 90976 | -1/Access_0 | Met Architect 90977 | -1/Access_0 | Destroyed A8 90983 | -1/Access_0 | Architect warped through subspace 91020 | -1/Access_0 | Architect warped through subspace 91053 | -1/Access_0 | Architect warped through subspace 91084 | -1/Access_0 | Architect warped through subspace 91108 | -1/Access_0 | Architect warped through subspace 91118 | -1/Access_0 | Found Prototype Device 91121 | -1/Access_0 | Found Prototype Device 91121 | -1/Access_0 | Identified Exp. Weapon Cycler 91132 | -1/Access_0 | Architect warped through subspace 91146 | -1/Access_0 | Build established: Scavenger-Mutant 91185 | -1/Access_0 | Architect warped through subspace 91217 | -1/Access_0 | Architect warped through subspace 91239 | -1/Access_0 | Architect warped through subspace 91262 | -1/Access_0 | Architect warped through subspace 91280 | -1/Access_0 | Architect warped through subspace 91311 | -1/Access_0 | A6 warped into view 91312 | -1/Access_0 | Architect warped through subspace 91317 | -1/Access_0 | Destroyed A6 91332 | -1/Access_0 | Architect warped through subspace 91376 | -1/Access_0 | Architect warped through subspace 91400 | -1/Access_0 | Architect warped through subspace 91409 | -1/Access_0 | Subspace Access Node disabled 91450 | -1/Access_0 | Architect warped through subspace 91471 | -1/Access_0 | Architect warped through subspace 91499 | -1/Access_0 | Architect warped through subspace 91510 | -1/Access_0 | Subspace Access Node disabled 91512 | -1/Access_0 | Used Core Regenerator, restored core integrity (+462) 91522 | -1/Access_0 | Architect warped through subspace 91539 | -1/Access_0 | Architect warped through subspace 91570 | -1/Access_0 | Architect warped through subspace 91589 | -1/Access_0 | Architect warped through subspace 91613 | -1/Access_0 | Architect warped through subspace 91626 | -1/Access_0 | Subspace Access Node disabled 91646 | -1/Access_0 | Architect warped through subspace 91650 | -1/Access_0 | A5 warped into view 91663 | -1/Access_0 | Destroyed A5 91677 | -1/Access_0 | Architect warped through subspace 91682 | -1/Access_0 | Used Integrity Redistributor, redistributed integrity from core (-507) 91700 | -1/Access_0 | Architect warped through subspace 91723 | -1/Access_0 | Architect warped through subspace 91748 | -1/Access_0 | Architect warped through subspace 91761 | -1/Access_0 | Found Prototype Protection 91781 | -1/Access_0 | Architect warped through subspace 91811 | -1/Access_0 | Architect warped through subspace 91848 | -1/Access_0 | Architect warped through subspace 91886 | -1/Access_0 | Architect warped through subspace 91904 | -1/Access_0 | Destroyed A2 91936 | -1/Access_0 | Architect warped through subspace 91986 | -1/Access_0 | Architect warped through subspace 92006 | -1/Access_0 | Singularity Gate disabled 92006 | -1/Access_0 | Singularity Gate disabled 92039 | -1/Access_0 | Found Exp. Target Analyzer 92043 | -1/Access_0 | Found Exp. Targeting Computer 92054 | -1/Access_0 | Architect warped through subspace 92103 | -1/Access_0 | Architect warped through subspace 92138 | -1/Access_0 | Architect warped through subspace 92174 | -1/Access_0 | Architect warped through subspace 92208 | -1/Access_0 | Architect warped through subspace 92231 | -1/Access_0 | Architect warped through subspace 92252 | -1/Access_0 | Architect warped through subspace 92275 | -1/Access_0 | Architect warped through subspace 92287 | -1/Access_0 | Architect warped through subspace 92299 | -1/Access_0 | Architect warped through subspace 92302 | -1/Access_0 | Subspace Access Node disabled 92324 | -1/Access_0 | Destroyed Architect 92338 | -1/Access_0 | Extracted unknown sensor trigger ID from Architect's data core 92346 | -1/Access_0 | Found Hpw. Transdimensional Reconstructor 92375 | -1/Access_0 | Identified Desublimator 92376 | -1/Access_0 | Identified Med. Regenerative Plating 92587 | -1/Access_0 | Build established: Scavenger-Gunner 92743 | -1/Access_0 | A4 warped into view 92762 | -1/Access_0 | Destroyed A4 93138 | -1/Access_0 | Found Prototype Device 93138 | -1/Access_0 | Identified Adv. Kinecellerator 93638 | -1/Access_0 | Core integrity fell below 50% 93650 | -1/Access_0 | A3 warped into view 93675 | -1/Access_0 | Destroyed A3 94057 | -1/Access_0 | Found Alien Slashing Weapon 94064 | -1/Access_0 | Identified Sigix Broadsword 94402 | -1/Access_0 | Found Sigix Corpse 94768 | -1/Access_0 | Found Exp. Powered Armor 94773 | -1/Access_0 | Found Exp. Powered Armor 96269 | -1/Access_0 | Warped through subspace to slip node 96269 | -1/Access_0 | Discovered new exit (range 8) 96272 | -1/Access_0 | Found Hpw. Transdimensional Reconstructor 96285 | *** | Establishing 0b11! Last Messages --------------- 95788_ Slug penetrates Enhanced Grunt. 95788_ Enhanced Grunt destroyed. 95788_ Slug penetrates Wall. 95790_ Slug penetrates Enhanced Grunt. 95790_ Slug penetrates Wall. 95790_ Slug penetrates Enhanced Grunt. 95790_ Slug penetrates Wall. 95790_ Slug penetrates Enhanced Grunt. 95790_ Slug penetrates Wall. 95793_ Slug penetrates Enhanced Grunt. 95793_ Enhanced Grunt suffers critical hit (Destroy). 95793_ Enhanced Grunt destroyed. 95793_ Slug penetrates Wall. 95806_ Acquired 5 matter. 95811_ OPXQCJ6X0V6COF, S| DEHH4VUA54 96238_ System corrupted: Component data lost. 96269_ Warped through subspace, drawn to slip node. 96269_ EXIT=FOUND 96272_ Acquired Hpw. Transdimensional Reconstructor. [Achievement: One Last FU] Map ----- +----------------------------------------------------+ | | | | | | | | | | | | | | | | | | | | | | | | | | | | | | | | | ?????????????????????????????????????????????????? | | ?????????????????????????????????????????????????? | | ?????????????????????????????????????????????????? | | ?????????????????????????????????????????????????? | | ?????????????????????????????????????????????????? | | ?????????????????????????????????????????????????? | | ????????????????????????###??????????????????????? | | ???????????????????????## ##?????????????????????? | | ???????????????????????# #?????????????????????? | | ???????????????????????# @ #?????????????????????? | | ??????????????????????## #?????????????????????? | | ??????????????????????# #?????????????????????? | | ??????????????????????# ##?????????????????????? | | ??????????????????????## #?????????????????????? | | ??????????????????????# #?????????????????????? | | ??????????????????????# ##?????????????????????? | | ??????????????????????# < #?????????????????????? | | ??????????????????????# ##?????????????????????? | | ??????????????????????## #??????????????????????? | | ???????????????????????####??????????????????????? | | ?????????????????????????????????????????????????? | | ?????????????????????????????????????????????????? | | ?????????????????????????????????????????????????? | | ?????????????????????????????????????????????????? | | ?????????????????????????????????????????????????? | | ?????????????????????????????????????????????????? | | ?????????????????????????????????????????????????? | | ?????????????????????????????????????????????????? | | ?????????????????????????????????????????????????? | | ?????????????????????????????????????????????????? | | ?????????????????????????????????????????????????? | | ?????????????????????????????????????????????????? | | ?????????????????????????????????????????????????? | | ?????????????????????????????????????????????????? | +----------------------------------------------------+ Best States ------------- Heat Dissipation 116 Coolant Potential 100 Energy Generation 86 Energy Capacity 1300 Matter Stores 800 Matter Capacity 800 Sight Range 23 Robot Scan Range 16 Terrain Scan Density 10 Armor Coverage 3200 Resistance: KI 30 Resistance: TH 50 Resistance: EX 75 Resistance: EM 100 Core Shielding 20 Weapon Shielding 90 Weapon Cycling 30 Phase Shifting 20 Evasion (%) 55 Targeting Accuracy 36 Target Analysis 10 Armor Integrity Analysis 50 Recoil Reduction 6 Particle Charging 20 Kinecelleration 50 Offensive Hacking 22 Relay Coupler Types 4 Relay Coupler Value 145 Item Schematics ----------------- Huge Storage Unit | -10/Materials | Hacked Hcp. Storage Unit | -10/Materials | Hacked Cargo Storage Unit | -10/Materials | Hacked Adv. Heavy Siege Treads | -2/Quarantine | Hacked Lgt. Quantum Reactor | -2/Quarantine | Hacked Robot Schematics ------------------ M-13 Machinist | -9/Materials | Hacked Fabricated ------------ Nothing Alien Tech Used ----------------- Subatomic Replicator Core Stripper Supercharged Integrated Reactor Integrated Thermoelectric Network Microwarp Drive High-powered Transdimensional Reconstructor Integrity Redistributor Integrated Mediator LRC Armor LRC Insulator Integrated Reactor Transdimensional Reconstructor Core Regenerator Sigix Broadsword Achievements -------------- One Last FU Challenges ------------ None Game ------ Seed MachineParticleCore Manual? 0 Play Time 09:57:48 Cumulative 562.0 hours Start 2021.12.24 @ 10:43:10 End 2021.12.25 @ 20:14:21 Sessions 3 Manual Loads 0 Difficulty Rogue Special Mode Winter2021/Sauler Game No. 246 Rogue 245 Adventurer 1 Explorer 0 Win Type 1 Total 46 Types 13/6/7/3/1/0/15/1/0 Lore% 95 Gallery% 97 Achievement% 85 Wizard Run 0 Options --------- ASCII 1 Keyboard 1 Movement Numpad Keybinds 0 Fullscreen 0 Font 18/Smallcaps Map View 76x50 Tactical HUD 1 Map Filters NONE Filters NONE Steam 1 RUN: 2eb56b15-400e-4bae-97c4-628ffb56e876